{"text_format":"3","workbook":"xlsx","n_sheets":6,"sheets":["แดชบอร์ด","ยอดขาย","รายรับ","ค่าใช้จ่าย","ภาษี","ประเภท"],"not_rendered":{"images":1,"defined_names":34},"read":"whole","date_system":"1900"}

{"sheet":"แดชบอร์ด","index":0,"n_rows":19,"n_cols":8,"rows_kept":19,"merged":[[0,2,0,4],[0,6,3,7],[4,1,4,7]]}
[null,"งบกำไรขาดทุน","สำหรับ [เดือนหรือปี] สิ้นสุด [เดือนวันปี]"]
[null,"ชื่อบริษัท","ระบุเป็น 000s"]
[null,"กำไรขั้นต้นปัจจุบัน  [L/J]",{"$f":"IFERROR(IF(Total_Gross_Profit=0,\"-\",Total_Gross_Profit/Total_Sales_Revenue),\"-\")","v":"-"}]
[null,"อัตราผลตอบแทนจากการขายปัจจุบัน [T/J]",{"$f":"IFERROR(IF(Net_Profit=0,\"-\",Net_Profit/Total_Sales_Revenue),\"-\")","v":"-"}]
[null,"ไม่สามารถปรับเปลี่ยนประเภทในเวิร์กชีตนี้หรือสูตรอาจผิด ใช้เวิร์กชีตประเภทเมื่อต้องการเพิ่มประเภทและอัปเดตเวิร์กชีตที่เกี่ยวข้องกับรายการ เวิร์กชีตนี้จะอัปเดตโดยอัตโนมัติ"]
[null,"สรุป","ยอดรวมรอบระยะเวลาก่อนหน้า","ยอดรวมงบประมาณ","ยอดรวมปัจจุบัน\nรอบระยะเวลา","ยอดรวมรอบระยะเวลาปัจจุบันที่คิดเป็น % ของยอดขาย","ยอดรวม % การเปลี่ยนแปลงจากรอบระยะเวลาก่อนหน้า","ยอดรวม % การเปลี่ยนแปลงทั้งหมดจากงบประมาณ"]
[null,"ยอดรวมรายได้จากการขาย  [J]",{"$f":"SUMIFS(SalesRevenue[รอบระยะเวลาก่อนหน้า],SalesRevenue[ชนิดรายได้],\"รายได้จากการขาย\")","v":0},{"$f":"SUMIFS(SalesRevenue[งบประมาณ],SalesRevenue[ชนิดรายได้],\"รายได้จากการขาย\")","v":0},{"$f":"SUMIFS(SalesRevenue[รอบระยะเวลาปัจจุบัน],SalesRevenue[ชนิดรายได้],\"รายได้จากการขาย\")","v":0},{"$f":"SUMIFS(SalesRevenue[รอบระยะเวลาปัจจุบันคิดเป็น % ของยอดขาย],SalesRevenue[ชนิดรายได้],\"รายได้จากการขาย\")","v":{"v":0,"d":"0.00%"}},{"$f":"SUMIFS(SalesRevenue[% การเปลี่ยนแปลงจากรอบระยะเวลาก่อนหน้า],SalesRevenue[ชนิดรายได้],\"รายได้จากการขาย\")","v":{"v":0,"d":"0.00%"}},{"$f":"SUMIFS(SalesRevenue[% การเปลี่ยนแปลงจากงบประมาณ],SalesRevenue[ชนิดรายได้],\"รายได้จากการขาย\")","v":{"v":0,"d":"0.00%"}}]
[null,"ยอดรวมต้นทุนการขาย  [K]",{"$f":"SUMIFS(SalesRevenue[รอบระยะเวลาก่อนหน้า],SalesRevenue[ชนิดรายได้],\"ต้นทุนการขาย\")","v":0},{"$f":"SUMIFS(SalesRevenue[งบประมาณ],SalesRevenue[ชนิดรายได้],\"ต้นทุนการขาย\")","v":0},{"$f":"SUMIFS(SalesRevenue[รอบระยะเวลาปัจจุบัน],SalesRevenue[ชนิดรายได้],\"ต้นทุนการขาย\")","v":0},{"$f":"SUMIFS(SalesRevenue[รอบระยะเวลาปัจจุบันคิดเป็น % ของยอดขาย],SalesRevenue[ชนิดรายได้],\"ต้นทุนการขาย\")","v":{"v":0,"d":"0.00%"}},{"$f":"SUMIFS(SalesRevenue[% การเปลี่ยนแปลงจากรอบระยะเวลาก่อนหน้า],SalesRevenue[ชนิดรายได้],\"ต้นทุนการขาย\")","v":{"v":0,"d":"0.00%"}},{"$f":"SUMIFS(SalesRevenue[% การเปลี่ยนแปลงจากงบประมาณ],SalesRevenue[ชนิดรายได้],\"ต้นทุนการขาย\")","v":{"v":0,"d":"0.00%"}}]
[null,"ยอดรวมค่าใช้จ่ายในการขายและการตลาด  [M]",{"$f":"SUMIFS(ค่าใช้จ่ายในการดำเนินการ[รอบระยะเวลาก่อนหน้า],ค่าใช้จ่ายในการดำเนินการ[ชนิดค่าใช้จ่าย],\"การขายและการตลาด\")","v":0},{"$f":"SUMIFS(ค่าใช้จ่ายในการดำเนินการ[งบประมาณ],ค่าใช้จ่ายในการดำเนินการ[ชนิดค่าใช้จ่าย],\"การขายและการตลาด\")","v":0},{"$f":"SUMIFS(ค่าใช้จ่ายในการดำเนินการ[รอบระยะเวลาปัจจุบัน],ค่าใช้จ่ายในการดำเนินการ[ชนิดค่าใช้จ่าย],\"การขายและการตลาด\")","v":0},{"$f":"SUMIFS(ค่าใช้จ่ายในการดำเนินการ[รอบระยะเวลาปัจจุบันคิดเป็น % ของยอดขาย],ค่าใช้จ่ายในการดำเนินการ[ชนิดค่าใช้จ่าย],\"การขายและการตลาด\")","v":{"v":0,"d":"0.00%"}},{"$f":"SUMIFS(ค่าใช้จ่ายในการดำเนินการ[% การเปลี่ยนแปลงจากรอบระยะเวลาก่อนหน้า],ค่าใช้จ่ายในการดำเนินการ[ชนิดค่าใช้จ่าย],\"การขายและการตลาด\")","v":{"v":0,"d":"0.00%"}},{"$f":"SUMIFS(ค่าใช้จ่ายในการดำเนินการ[% การเปลี่ยนแปลงจากงบประมาณ],ค่าใช้จ่ายในการดำเนินการ[ชนิดค่าใช้จ่าย],\"การขายและการตลาด\")","v":{"v":0,"d":"0.00%"}}]
[null,"ยอดรวมค่าใช้จ่ายในการค้นคว้าและพัฒนา  [N]",{"$f":"SUMIFS(ค่าใช้จ่ายในการดำเนินการ[รอบระยะเวลาก่อนหน้า],ค่าใช้จ่ายในการดำเนินการ[ชนิดค่าใช้จ่าย],\"การวิจัยและการพัฒนา\")","v":0},{"$f":"SUMIFS(ค่าใช้จ่ายในการดำเนินการ[งบประมาณ],ค่าใช้จ่ายในการดำเนินการ[ชนิดค่าใช้จ่าย],\"การวิจัยและการพัฒนา\")","v":0},{"$f":"SUMIFS(ค่าใช้จ่ายในการดำเนินการ[รอบระยะเวลาปัจจุบัน],ค่าใช้จ่ายในการดำเนินการ[ชนิดค่าใช้จ่าย],\"การวิจัยและการพัฒนา\")","v":0},{"$f":"SUMIFS(ค่าใช้จ่ายในการดำเนินการ[รอบระยะเวลาปัจจุบันคิดเป็น % ของยอดขาย],ค่าใช้จ่ายในการดำเนินการ[ชนิดค่าใช้จ่าย],\"การวิจัยและการพัฒนา\")","v":{"v":0,"d":"0.00%"}},{"$f":"SUMIFS(ค่าใช้จ่ายในการดำเนินการ[% การเปลี่ยนแปลงจากรอบระยะเวลาก่อนหน้า],ค่าใช้จ่ายในการดำเนินการ[ชนิดค่าใช้จ่าย],\"การวิจัยและการพัฒนา\")","v":{"v":0,"d":"0.00%"}},{"$f":"SUMIFS(ค่าใช้จ่ายในการดำเนินการ[% การเปลี่ยนแปลงจากงบประมาณ],ค่าใช้จ่ายในการดำเนินการ[ชนิดค่าใช้จ่าย],\"การวิจัยและการพัฒนา\")","v":{"v":0,"d":"0.00%"}}]
[null,"ยอดรวมค่าใช้จ่ายทั่วไปและที่เกี่ยวกับการบริหาร  [O]",{"$f":"SUMIFS(ค่าใช้จ่ายในการดำเนินการ[รอบระยะเวลาก่อนหน้า],ค่าใช้จ่ายในการดำเนินการ[ชนิดค่าใช้จ่าย],\"ทั่วไปและการดูแล\")","v":0},{"$f":"SUMIFS(ค่าใช้จ่ายในการดำเนินการ[งบประมาณ],ค่าใช้จ่ายในการดำเนินการ[ชนิดค่าใช้จ่าย],\"ทั่วไปและการดูแล\")","v":0},{"$f":"SUMIFS(ค่าใช้จ่ายในการดำเนินการ[รอบระยะเวลาปัจจุบัน],ค่าใช้จ่ายในการดำเนินการ[ชนิดค่าใช้จ่าย],\"ทั่วไปและการดูแล\")","v":0},{"$f":"SUMIFS(ค่าใช้จ่ายในการดำเนินการ[รอบระยะเวลาปัจจุบันคิดเป็น % ของยอดขาย],ค่าใช้จ่ายในการดำเนินการ[ชนิดค่าใช้จ่าย],\"ทั่วไปและการดูแล\")","v":{"v":0,"d":"0.00%"}},{"$f":"SUMIFS(ค่าใช้จ่ายในการดำเนินการ[% การเปลี่ยนแปลงจากรอบระยะเวลาก่อนหน้า],ค่าใช้จ่ายในการดำเนินการ[ชนิดค่าใช้จ่าย],\"ทั่วไปและการดูแล\")","v":{"v":0,"d":"0.00%"}},{"$f":"SUMIFS(ค่าใช้จ่ายในการดำเนินการ[% การเปลี่ยนแปลงจากงบประมาณ],ค่าใช้จ่ายในการดำเนินการ[ชนิดค่าใช้จ่าย],\"ทั่วไปและการดูแล\")","v":{"v":0,"d":"0.00%"}}]
[null,"ยอดรวมค่าใช้จ่ายในการดำเนินการอื่นๆ [P]",{"$f":"ค่าใช้จ่ายในการดำเนินการ[[#Totals],[รอบระยะเวลาก่อนหน้า]]-SUM(C9:C11)","v":0},{"$f":"ค่าใช้จ่ายในการดำเนินการ[[#Totals],[งบประมาณ]]-SUM(D9:D11)","v":0},{"$f":"ค่าใช้จ่ายในการดำเนินการ[[#Totals],[รอบระยะเวลาปัจจุบัน]]-SUM(E9:E11)","v":0},{"$f":"ค่าใช้จ่ายในการดำเนินการ[[#Totals],[รอบระยะเวลาปัจจุบันคิดเป็น % ของยอดขาย]]-SUM(F9:F11)","v":{"v":0,"d":"0.00%"}},{"$f":"ค่าใช้จ่ายในการดำเนินการ[[#Totals],[% การเปลี่ยนแปลงจากรอบระยะเวลาก่อนหน้า]]-SUM(G9:G11)","v":{"v":0,"d":"0.00%"}},{"$f":"ค่าใช้จ่ายในการดำเนินการ[[#Totals],[% การเปลี่ยนแปลงจากงบประมาณ]]-SUM(H9:H11)","v":{"v":0,"d":"0.00%"}}]
[null,"รายรับอื่นๆ  [S]",{"$f":"รายรับ[[#Totals],[รอบระยะเวลาก่อนหน้า]]","v":0},{"$f":"รายรับ[[#Totals],[งบประมาณ]]","v":0},{"$f":"รายรับ[[#Totals],[รอบระยะเวลาปัจจุบัน]]","v":0},{"$f":"รายรับ[[#Totals],[รอบระยะเวลาปัจจุบันคิดเป็น % ของยอดขาย]]","v":{"v":0,"d":"0.00%"}},{"$f":"รายรับ[[#Totals],[% การเปลี่ยนแปลงจากรอบระยะเวลาก่อนหน้า]]","v":{"v":0,"d":"0.00%"}},{"$f":"รายรับ[[#Totals],[% การเปลี่ยนแปลงจากงบประมาณ]]","v":{"v":0,"d":"0.00%"}}]
[null,"ยอดรวมภาษี  [T]",{"$f":"ภาษี[[#Totals],[รอบระยะเวลาก่อนหน้า]]","v":0},{"$f":"ภาษี[[#Totals],[งบประมาณ]]","v":0},{"$f":"ภาษี[[#Totals],[รอบระยะเวลาปัจจุบัน]]","v":0},{"$f":"ภาษี[[#Totals],[รอบระยะเวลาปัจจุบันคิดเป็น % ของยอดขาย]]","v":{"v":0,"d":"0.00%"}},{"$f":"ภาษี[[#Totals],[% การเปลี่ยนแปลงจากรอบระยะเวลาก่อนหน้า]]","v":{"v":0,"d":"0.00%"}},{"$f":"ภาษี[[#Totals],[% การเปลี่ยนแปลงจากงบประมาณ]]","v":{"v":0,"d":"0.00%"}}]
[]
[null,"กำไรขั้นต้น  [L=J-K]",{"$f":"IFERROR(C7-C8,\"-\")","v":0},{"$f":"IFERROR(D7-D8,\"-\")","v":0},{"$f":"IFERROR(Total_Sales_Revenue-Total_Cost_Sales,\"-\")","v":0},{"$f":"IFERROR(IF(Total_Sales_Revenue=0,\"0.00%\",Total_Gross_Profit/Total_Sales_Revenue),\"-\")","v":"0.00%"},{"$f":"IFERROR(IF(C16=Total_Gross_Profit,0,IF(Total_Gross_Profit>C16,ABS((Total_Gross_Profit/C16)-1),IF(AND(Total_Gross_Profit<C16,C16<0),-((Total_Gross_Profit/C16)-1),(Total_Gross_Profit/C16)-1))),\"-\")","v":{"v":0,"d":"0.00%"}},{"$f":"IFERROR(IF(D16=Total_Gross_Profit,0,IF(Total_Gross_Profit>D16,ABS((Total_Gross_Profit/D16)-1),IF(AND(Total_Gross_Profit<D16,D16<0),-((Total_Gross_Profit/D16)-1),(Total_Gross_Profit/D16)-1))),\"-\")","v":{"v":0,"d":"0.00%"}}]
[null,"ยอดรวมค่าใช้จ่ายในการดำเนินการ [Q=M+N+O+P]",{"$f":"IFERROR(C9+C10+C11+C12,\"-\")","v":0},{"$f":"IFERROR(D9+D10+D11+D12,\"-\")","v":0},{"$f":"IFERROR(Total_Sales_and_Marketing+Total_Research_and_Development+Total_General_and_Administrative+Total_Other_Expenses,\"-\")","v":0},{"$f":"IFERROR(IF(Total_Sales_Revenue=0,\"0.00%\",Total_Operating_Expenses/Total_Sales_Revenue),\"-\")","v":"0.00%"},{"$f":"IFERROR(IF(C17=Total_Operating_Expenses,0,IF(Total_Operating_Expenses>C17,ABS((Total_Operating_Expenses/C17)-1),IF(AND(Total_Operating_Expenses<C17,C17<0),-((Total_Operating_Expenses/C17)-1),(Total_Operating_Expenses/C17)-1))),\"-\")","v":{"v":0,"d":"0.00%"}},{"$f":"IFERROR(IF(D17=Total_Operating_Expenses,0,IF(Total_Operating_Expenses>D17,ABS((Total_Operating_Expenses/D17)-1),IF(AND(Total_Operating_Expenses<D17,D17<0),-((Total_Operating_Expenses/D17)-1),(Total_Operating_Expenses/D17)-1))),\"-\")","v":{"v":0,"d":"0.00%"}}]
[null,"รายรับจากการดำเนินการ  [R=L-Q]",{"$f":"IFERROR(C16-C17,\"-\")","v":0},{"$f":"IFERROR(D16-D17,\"-\")","v":0},{"$f":"IFERROR(Total_Gross_Profit-Total_Operating_Expenses,\"-\")","v":0},{"$f":"IFERROR(IF(Total_Sales_Revenue=0,\"0.00%\",Total_Income_Operations/Total_Sales_Revenue),\"-\")","v":"0.00%"},{"$f":"IFERROR(IF(C18=Total_Income_Operations,0,IF(Total_Income_Operations>C18,ABS((Total_Income_Operations/C18)-1),IF(AND(Total_Income_Operations<C18,C18<0),-((Total_Income_Operations/C18)-1),(Total_Income_Operations/C18)-1))),\"-\")","v":{"v":0,"d":"0.00%"}},{"$f":"IFERROR(IF(D18=Total_Income_Operations,0,IF(Total_Income_Operations>D18,ABS((Total_Income_Operations/D18)-1),IF(AND(Total_Income_Operations<D18,D18<0),-((Total_Income_Operations/D18)-1),(Total_Income_Operations/D18)-1))),\"-\")","v":{"v":0,"d":"0.00%"}}]
[null,"กำไรสุทธิ  [U=R+S-T]",{"$f":"IFERROR(C18+C13-C14,\"-\")","v":0},{"$f":"IFERROR(D18+D13-D14,\"-\")","v":0},{"$f":"Total_Income_Operations+Total_Other_Income-Total_Taxes","v":0},{"$f":"IFERROR(IF(Total_Sales_Revenue=0,\"0.00%\",Net_Profit/Total_Sales_Revenue),\"-\")","v":"0.00%"},{"$f":"IFERROR(IF(C19=Net_Profit,0,IF(Net_Profit>C19,ABS((Net_Profit/C19)-1),IF(AND(Net_Profit<C19,C19<0),-((Net_Profit/C19)-1),(Net_Profit/C19)-1))),\"-\")","v":{"v":0,"d":"0.00%"}},{"$f":"IFERROR(IF(D19=Net_Profit,0,IF(Net_Profit>D19,ABS((Net_Profit/D19)-1),IF(AND(Net_Profit<D19,D19<0),-((Net_Profit/D19)-1),(Net_Profit/D19)-1))),\"-\")","v":{"v":0,"d":"0.00%"}}]

{"sheet":"ยอดขาย","index":1,"n_rows":13,"n_cols":9,"rows_kept":13,"merged":[[0,7,2,8]]}
[null,{"$f":"Workbook_Title","v":"งบกำไรขาดทุน"}]
[null,{"$f":"Company_Name","v":"ชื่อบริษัท"},"ระบุเป็น 000s"]
[null,"รายได้จากการขาย",{"$f":"IFERROR(Sales_Revenue,\"-\")","v":0}]
[null,"ชนิดรายได้","คำอธิบาย","รอบระยะเวลาก่อนหน้า","งบประมาณ","รอบระยะเวลาปัจจุบัน","รอบระยะเวลาปัจจุบันคิดเป็น % ของยอดขาย","% การเปลี่ยนแปลงจากรอบระยะเวลาก่อนหน้า","% การเปลี่ยนแปลงจากงบประมาณ"]
[null,"รายได้จากการขาย","ผลิตภัณฑ์/บริการ 1",{"$nulls":3},{"$f":"IFERROR(IF(SalesRevenue[[#Totals],[รอบระยะเวลาปัจจุบัน]]=0,\"-\",SalesRevenue[รอบระยะเวลาปัจจุบัน]/Sales_Revenue),\"-\")","v":"-"},{"$f":"IFERROR(IF(SalesRevenue[[#This Row],[รอบระยะเวลาก่อนหน้า]]=SalesRevenue[[#This Row],[รอบระยะเวลาปัจจุบัน]],0,IF(SalesRevenue[[#This Row],[รอบระยะเวลาปัจจุบัน]]>SalesRevenue[[#This Row],[รอบระยะเวลาก่อนหน้า]],ABS((SalesRevenue[[#This Row],[รอบระยะเวลาปัจจุบัน]]/SalesRevenue[[#This Row],[รอบระยะเวลาก่อนหน้า]])-1),IF(AND(SalesRevenue[[#This Row],[รอบระยะเวลาปัจจุบัน]]<SalesRevenue[[#This Row],[รอบระยะเวลาก่อนหน้า]],SalesRevenue[[#This Row],[รอบระยะเวลาก่อนหน้า]]<0),-((SalesRevenue[[#This Row],[รอบระยะเวลาปัจจุบัน]]/SalesRevenue[[#This Row],[รอบระยะเวลาก่อนหน้า]])-1),(SalesRevenue[[#This Row],[รอบระยะเวลาปัจจุบัน]]/SalesRevenue[[#This Row],[รอบระยะเวลาก่อนหน้า]])-1))),\"-\")","v":{"v":0,"d":"0.00%"}},{"$f":"IFERROR(IF(SalesRevenue[[#This Row],[งบประมาณ]]=SalesRevenue[[#This Row],[รอบระยะเวลาปัจจุบัน]],0,IF(SalesRevenue[[#This Row],[รอบระยะเวลาปัจจุบัน]]>SalesRevenue[[#This Row],[งบประมาณ]],ABS((SalesRevenue[[#This Row],[รอบระยะเวลาปัจจุบัน]]/SalesRevenue[[#This Row],[งบประมาณ]])-1),IF(AND(SalesRevenue[[#This Row],[รอบระยะเวลาปัจจุบัน]]<SalesRevenue[[#This Row],[งบประมาณ]],SalesRevenue[[#This Row],[งบประมาณ]]<0),-((SalesRevenue[[#This Row],[รอบระยะเวลาปัจจุบัน]]/SalesRevenue[[#This Row],[งบประมาณ]])-1),(SalesRevenue[[#This Row],[รอบระยะเวลาปัจจุบัน]]/SalesRevenue[[#This Row],[งบประมาณ]])-1))),\"-\")","v":{"v":0,"d":"0.00%"}}]
[null,"รายได้จากการขาย","ผลิตภัณฑ์/บริการ 2",{"$nulls":3},{"$f":"IFERROR(IF(SalesRevenue[[#Totals],[รอบระยะเวลาปัจจุบัน]]=0,\"-\",SalesRevenue[รอบระยะเวลาปัจจุบัน]/Sales_Revenue),\"-\")","v":"-"},{"$f":"IFERROR(IF(SalesRevenue[[#This Row],[รอบระยะเวลาก่อนหน้า]]=SalesRevenue[[#This Row],[รอบระยะเวลาปัจจุบัน]],0,IF(SalesRevenue[[#This Row],[รอบระยะเวลาปัจจุบัน]]>SalesRevenue[[#This Row],[รอบระยะเวลาก่อนหน้า]],ABS((SalesRevenue[[#This Row],[รอบระยะเวลาปัจจุบัน]]/SalesRevenue[[#This Row],[รอบระยะเวลาก่อนหน้า]])-1),IF(AND(SalesRevenue[[#This Row],[รอบระยะเวลาปัจจุบัน]]<SalesRevenue[[#This Row],[รอบระยะเวลาก่อนหน้า]],SalesRevenue[[#This Row],[รอบระยะเวลาก่อนหน้า]]<0),-((SalesRevenue[[#This Row],[รอบระยะเวลาปัจจุบัน]]/SalesRevenue[[#This Row],[รอบระยะเวลาก่อนหน้า]])-1),(SalesRevenue[[#This Row],[รอบระยะเวลาปัจจุบัน]]/SalesRevenue[[#This Row],[รอบระยะเวลาก่อนหน้า]])-1))),\"-\")","v":{"v":0,"d":"0.00%"}},{"$f":"IFERROR(IF(SalesRevenue[[#This Row],[งบประมาณ]]=SalesRevenue[[#This Row],[รอบระยะเวลาปัจจุบัน]],0,IF(SalesRevenue[[#This Row],[รอบระยะเวลาปัจจุบัน]]>SalesRevenue[[#This Row],[งบประมาณ]],ABS((SalesRevenue[[#This Row],[รอบระยะเวลาปัจจุบัน]]/SalesRevenue[[#This Row],[งบประมาณ]])-1),IF(AND(SalesRevenue[[#This Row],[รอบระยะเวลาปัจจุบัน]]<SalesRevenue[[#This Row],[งบประมาณ]],SalesRevenue[[#This Row],[งบประมาณ]]<0),-((SalesRevenue[[#This Row],[รอบระยะเวลาปัจจุบัน]]/SalesRevenue[[#This Row],[งบประมาณ]])-1),(SalesRevenue[[#This Row],[รอบระยะเวลาปัจจุบัน]]/SalesRevenue[[#This Row],[งบประมาณ]])-1))),\"-\")","v":{"v":0,"d":"0.00%"}}]
[null,"รายได้จากการขาย","ผลิตภัณฑ์/บริการ 3",{"$nulls":3},{"$f":"IFERROR(IF(SalesRevenue[[#Totals],[รอบระยะเวลาปัจจุบัน]]=0,\"-\",SalesRevenue[รอบระยะเวลาปัจจุบัน]/Sales_Revenue),\"-\")","v":"-"},{"$f":"IFERROR(IF(SalesRevenue[[#This Row],[รอบระยะเวลาก่อนหน้า]]=SalesRevenue[[#This Row],[รอบระยะเวลาปัจจุบัน]],0,IF(SalesRevenue[[#This Row],[รอบระยะเวลาปัจจุบัน]]>SalesRevenue[[#This Row],[รอบระยะเวลาก่อนหน้า]],ABS((SalesRevenue[[#This Row],[รอบระยะเวลาปัจจุบัน]]/SalesRevenue[[#This Row],[รอบระยะเวลาก่อนหน้า]])-1),IF(AND(SalesRevenue[[#This Row],[รอบระยะเวลาปัจจุบัน]]<SalesRevenue[[#This Row],[รอบระยะเวลาก่อนหน้า]],SalesRevenue[[#This Row],[รอบระยะเวลาก่อนหน้า]]<0),-((SalesRevenue[[#This Row],[รอบระยะเวลาปัจจุบัน]]/SalesRevenue[[#This Row],[รอบระยะเวลาก่อนหน้า]])-1),(SalesRevenue[[#This Row],[รอบระยะเวลาปัจจุบัน]]/SalesRevenue[[#This Row],[รอบระยะเวลาก่อนหน้า]])-1))),\"-\")","v":{"v":0,"d":"0.00%"}},{"$f":"IFERROR(IF(SalesRevenue[[#This Row],[งบประมาณ]]=SalesRevenue[[#This Row],[รอบระยะเวลาปัจจุบัน]],0,IF(SalesRevenue[[#This Row],[รอบระยะเวลาปัจจุบัน]]>SalesRevenue[[#This Row],[งบประมาณ]],ABS((SalesRevenue[[#This Row],[รอบระยะเวลาปัจจุบัน]]/SalesRevenue[[#This Row],[งบประมาณ]])-1),IF(AND(SalesRevenue[[#This Row],[รอบระยะเวลาปัจจุบัน]]<SalesRevenue[[#This Row],[งบประมาณ]],SalesRevenue[[#This Row],[งบประมาณ]]<0),-((SalesRevenue[[#This Row],[รอบระยะเวลาปัจจุบัน]]/SalesRevenue[[#This Row],[งบประมาณ]])-1),(SalesRevenue[[#This Row],[รอบระยะเวลาปัจจุบัน]]/SalesRevenue[[#This Row],[งบประมาณ]])-1))),\"-\")","v":{"v":0,"d":"0.00%"}}]
[null,"รายได้จากการขาย","ผลิตภัณฑ์/บริการ 4",{"$nulls":3},{"$f":"IFERROR(IF(SalesRevenue[[#Totals],[รอบระยะเวลาปัจจุบัน]]=0,\"-\",SalesRevenue[รอบระยะเวลาปัจจุบัน]/Sales_Revenue),\"-\")","v":"-"},{"$f":"IFERROR(IF(SalesRevenue[[#This Row],[รอบระยะเวลาก่อนหน้า]]=SalesRevenue[[#This Row],[รอบระยะเวลาปัจจุบัน]],0,IF(SalesRevenue[[#This Row],[รอบระยะเวลาปัจจุบัน]]>SalesRevenue[[#This Row],[รอบระยะเวลาก่อนหน้า]],ABS((SalesRevenue[[#This Row],[รอบระยะเวลาปัจจุบัน]]/SalesRevenue[[#This Row],[รอบระยะเวลาก่อนหน้า]])-1),IF(AND(SalesRevenue[[#This Row],[รอบระยะเวลาปัจจุบัน]]<SalesRevenue[[#This Row],[รอบระยะเวลาก่อนหน้า]],SalesRevenue[[#This Row],[รอบระยะเวลาก่อนหน้า]]<0),-((SalesRevenue[[#This Row],[รอบระยะเวลาปัจจุบัน]]/SalesRevenue[[#This Row],[รอบระยะเวลาก่อนหน้า]])-1),(SalesRevenue[[#This Row],[รอบระยะเวลาปัจจุบัน]]/SalesRevenue[[#This Row],[รอบระยะเวลาก่อนหน้า]])-1))),\"-\")","v":{"v":0,"d":"0.00%"}},{"$f":"IFERROR(IF(SalesRevenue[[#This Row],[งบประมาณ]]=SalesRevenue[[#This Row],[รอบระยะเวลาปัจจุบัน]],0,IF(SalesRevenue[[#This Row],[รอบระยะเวลาปัจจุบัน]]>SalesRevenue[[#This Row],[งบประมาณ]],ABS((SalesRevenue[[#This Row],[รอบระยะเวลาปัจจุบัน]]/SalesRevenue[[#This Row],[งบประมาณ]])-1),IF(AND(SalesRevenue[[#This Row],[รอบระยะเวลาปัจจุบัน]]<SalesRevenue[[#This Row],[งบประมาณ]],SalesRevenue[[#This Row],[งบประมาณ]]<0),-((SalesRevenue[[#This Row],[รอบระยะเวลาปัจจุบัน]]/SalesRevenue[[#This Row],[งบประมาณ]])-1),(SalesRevenue[[#This Row],[รอบระยะเวลาปัจจุบัน]]/SalesRevenue[[#This Row],[งบประมาณ]])-1))),\"-\")","v":{"v":0,"d":"0.00%"}}]
[null,"ต้นทุนการขาย","ผลิตภัณฑ์/บริการ 1",{"$nulls":3},{"$f":"IFERROR(IF(SalesRevenue[[#Totals],[รอบระยะเวลาปัจจุบัน]]=0,\"-\",SalesRevenue[รอบระยะเวลาปัจจุบัน]/Sales_Revenue),\"-\")","v":"-"},{"$f":"IFERROR(IF(SalesRevenue[[#This Row],[รอบระยะเวลาก่อนหน้า]]=SalesRevenue[[#This Row],[รอบระยะเวลาปัจจุบัน]],0,IF(SalesRevenue[[#This Row],[รอบระยะเวลาปัจจุบัน]]>SalesRevenue[[#This Row],[รอบระยะเวลาก่อนหน้า]],ABS((SalesRevenue[[#This Row],[รอบระยะเวลาปัจจุบัน]]/SalesRevenue[[#This Row],[รอบระยะเวลาก่อนหน้า]])-1),IF(AND(SalesRevenue[[#This Row],[รอบระยะเวลาปัจจุบัน]]<SalesRevenue[[#This Row],[รอบระยะเวลาก่อนหน้า]],SalesRevenue[[#This Row],[รอบระยะเวลาก่อนหน้า]]<0),-((SalesRevenue[[#This Row],[รอบระยะเวลาปัจจุบัน]]/SalesRevenue[[#This Row],[รอบระยะเวลาก่อนหน้า]])-1),(SalesRevenue[[#This Row],[รอบระยะเวลาปัจจุบัน]]/SalesRevenue[[#This Row],[รอบระยะเวลาก่อนหน้า]])-1))),\"-\")","v":{"v":0,"d":"0.00%"}},{"$f":"IFERROR(IF(SalesRevenue[[#This Row],[งบประมาณ]]=SalesRevenue[[#This Row],[รอบระยะเวลาปัจจุบัน]],0,IF(SalesRevenue[[#This Row],[รอบระยะเวลาปัจจุบัน]]>SalesRevenue[[#This Row],[งบประมาณ]],ABS((SalesRevenue[[#This Row],[รอบระยะเวลาปัจจุบัน]]/SalesRevenue[[#This Row],[งบประมาณ]])-1),IF(AND(SalesRevenue[[#This Row],[รอบระยะเวลาปัจจุบัน]]<SalesRevenue[[#This Row],[งบประมาณ]],SalesRevenue[[#This Row],[งบประมาณ]]<0),-((SalesRevenue[[#This Row],[รอบระยะเวลาปัจจุบัน]]/SalesRevenue[[#This Row],[งบประมาณ]])-1),(SalesRevenue[[#This Row],[รอบระยะเวลาปัจจุบัน]]/SalesRevenue[[#This Row],[งบประมาณ]])-1))),\"-\")","v":{"v":0,"d":"0.00%"}}]
[null,"ต้นทุนการขาย","ผลิตภัณฑ์/บริการ 2",{"$nulls":3},{"$f":"IFERROR(IF(SalesRevenue[[#Totals],[รอบระยะเวลาปัจจุบัน]]=0,\"-\",SalesRevenue[รอบระยะเวลาปัจจุบัน]/Sales_Revenue),\"-\")","v":"-"},{"$f":"IFERROR(IF(SalesRevenue[[#This Row],[รอบระยะเวลาก่อนหน้า]]=SalesRevenue[[#This Row],[รอบระยะเวลาปัจจุบัน]],0,IF(SalesRevenue[[#This Row],[รอบระยะเวลาปัจจุบัน]]>SalesRevenue[[#This Row],[รอบระยะเวลาก่อนหน้า]],ABS((SalesRevenue[[#This Row],[รอบระยะเวลาปัจจุบัน]]/SalesRevenue[[#This Row],[รอบระยะเวลาก่อนหน้า]])-1),IF(AND(SalesRevenue[[#This Row],[รอบระยะเวลาปัจจุบัน]]<SalesRevenue[[#This Row],[รอบระยะเวลาก่อนหน้า]],SalesRevenue[[#This Row],[รอบระยะเวลาก่อนหน้า]]<0),-((SalesRevenue[[#This Row],[รอบระยะเวลาปัจจุบัน]]/SalesRevenue[[#This Row],[รอบระยะเวลาก่อนหน้า]])-1),(SalesRevenue[[#This Row],[รอบระยะเวลาปัจจุบัน]]/SalesRevenue[[#This Row],[รอบระยะเวลาก่อนหน้า]])-1))),\"-\")","v":{"v":0,"d":"0.00%"}},{"$f":"IFERROR(IF(SalesRevenue[[#This Row],[งบประมาณ]]=SalesRevenue[[#This Row],[รอบระยะเวลาปัจจุบัน]],0,IF(SalesRevenue[[#This Row],[รอบระยะเวลาปัจจุบัน]]>SalesRevenue[[#This Row],[งบประมาณ]],ABS((SalesRevenue[[#This Row],[รอบระยะเวลาปัจจุบัน]]/SalesRevenue[[#This Row],[งบประมาณ]])-1),IF(AND(SalesRevenue[[#This Row],[รอบระยะเวลาปัจจุบัน]]<SalesRevenue[[#This Row],[งบประมาณ]],SalesRevenue[[#This Row],[งบประมาณ]]<0),-((SalesRevenue[[#This Row],[รอบระยะเวลาปัจจุบัน]]/SalesRevenue[[#This Row],[งบประมาณ]])-1),(SalesRevenue[[#This Row],[รอบระยะเวลาปัจจุบัน]]/SalesRevenue[[#This Row],[งบประมาณ]])-1))),\"-\")","v":{"v":0,"d":"0.00%"}}]
[null,"ต้นทุนการขาย","ผลิตภัณฑ์/บริการ 3",{"$nulls":3},{"$f":"IFERROR(IF(SalesRevenue[[#Totals],[รอบระยะเวลาปัจจุบัน]]=0,\"-\",SalesRevenue[รอบระยะเวลาปัจจุบัน]/Sales_Revenue),\"-\")","v":"-"},{"$f":"IFERROR(IF(SalesRevenue[[#This Row],[รอบระยะเวลาก่อนหน้า]]=SalesRevenue[[#This Row],[รอบระยะเวลาปัจจุบัน]],0,IF(SalesRevenue[[#This Row],[รอบระยะเวลาปัจจุบัน]]>SalesRevenue[[#This Row],[รอบระยะเวลาก่อนหน้า]],ABS((SalesRevenue[[#This Row],[รอบระยะเวลาปัจจุบัน]]/SalesRevenue[[#This Row],[รอบระยะเวลาก่อนหน้า]])-1),IF(AND(SalesRevenue[[#This Row],[รอบระยะเวลาปัจจุบัน]]<SalesRevenue[[#This Row],[รอบระยะเวลาก่อนหน้า]],SalesRevenue[[#This Row],[รอบระยะเวลาก่อนหน้า]]<0),-((SalesRevenue[[#This Row],[รอบระยะเวลาปัจจุบัน]]/SalesRevenue[[#This Row],[รอบระยะเวลาก่อนหน้า]])-1),(SalesRevenue[[#This Row],[รอบระยะเวลาปัจจุบัน]]/SalesRevenue[[#This Row],[รอบระยะเวลาก่อนหน้า]])-1))),\"-\")","v":{"v":0,"d":"0.00%"}},{"$f":"IFERROR(IF(SalesRevenue[[#This Row],[งบประมาณ]]=SalesRevenue[[#This Row],[รอบระยะเวลาปัจจุบัน]],0,IF(SalesRevenue[[#This Row],[รอบระยะเวลาปัจจุบัน]]>SalesRevenue[[#This Row],[งบประมาณ]],ABS((SalesRevenue[[#This Row],[รอบระยะเวลาปัจจุบัน]]/SalesRevenue[[#This Row],[งบประมาณ]])-1),IF(AND(SalesRevenue[[#This Row],[รอบระยะเวลาปัจจุบัน]]<SalesRevenue[[#This Row],[งบประมาณ]],SalesRevenue[[#This Row],[งบประมาณ]]<0),-((SalesRevenue[[#This Row],[รอบระยะเวลาปัจจุบัน]]/SalesRevenue[[#This Row],[งบประมาณ]])-1),(SalesRevenue[[#This Row],[รอบระยะเวลาปัจจุบัน]]/SalesRevenue[[#This Row],[งบประมาณ]])-1))),\"-\")","v":{"v":0,"d":"0.00%"}}]
[null,"ต้นทุนการขาย","ผลิตภัณฑ์/บริการ 4",{"$nulls":3},{"$f":"IFERROR(IF(SalesRevenue[[#Totals],[รอบระยะเวลาปัจจุบัน]]=0,\"-\",SalesRevenue[รอบระยะเวลาปัจจุบัน]/Sales_Revenue),\"-\")","v":"-"},{"$f":"IFERROR(IF(SalesRevenue[[#This Row],[รอบระยะเวลาก่อนหน้า]]=SalesRevenue[[#This Row],[รอบระยะเวลาปัจจุบัน]],0,IF(SalesRevenue[[#This Row],[รอบระยะเวลาปัจจุบัน]]>SalesRevenue[[#This Row],[รอบระยะเวลาก่อนหน้า]],ABS((SalesRevenue[[#This Row],[รอบระยะเวลาปัจจุบัน]]/SalesRevenue[[#This Row],[รอบระยะเวลาก่อนหน้า]])-1),IF(AND(SalesRevenue[[#This Row],[รอบระยะเวลาปัจจุบัน]]<SalesRevenue[[#This Row],[รอบระยะเวลาก่อนหน้า]],SalesRevenue[[#This Row],[รอบระยะเวลาก่อนหน้า]]<0),-((SalesRevenue[[#This Row],[รอบระยะเวลาปัจจุบัน]]/SalesRevenue[[#This Row],[รอบระยะเวลาก่อนหน้า]])-1),(SalesRevenue[[#This Row],[รอบระยะเวลาปัจจุบัน]]/SalesRevenue[[#This Row],[รอบระยะเวลาก่อนหน้า]])-1))),\"-\")","v":{"v":0,"d":"0.00%"}},{"$f":"IFERROR(IF(SalesRevenue[[#This Row],[งบประมาณ]]=SalesRevenue[[#This Row],[รอบระยะเวลาปัจจุบัน]],0,IF(SalesRevenue[[#This Row],[รอบระยะเวลาปัจจุบัน]]>SalesRevenue[[#This Row],[งบประมาณ]],ABS((SalesRevenue[[#This Row],[รอบระยะเวลาปัจจุบัน]]/SalesRevenue[[#This Row],[งบประมาณ]])-1),IF(AND(SalesRevenue[[#This Row],[รอบระยะเวลาปัจจุบัน]]<SalesRevenue[[#This Row],[งบประมาณ]],SalesRevenue[[#This Row],[งบประมาณ]]<0),-((SalesRevenue[[#This Row],[รอบระยะเวลาปัจจุบัน]]/SalesRevenue[[#This Row],[งบประมาณ]])-1),(SalesRevenue[[#This Row],[รอบระยะเวลาปัจจุบัน]]/SalesRevenue[[#This Row],[งบประมาณ]])-1))),\"-\")","v":{"v":0,"d":"0.00%"}}]
[null,"ยอดรวมรายได้จากการขาย",null,{"$f":"SUBTOTAL(109,SalesRevenue[รอบระยะเวลาก่อนหน้า])","v":0},{"$f":"SUBTOTAL(109,SalesRevenue[งบประมาณ])","v":0},{"$f":"SUBTOTAL(109,SalesRevenue[รอบระยะเวลาปัจจุบัน])","v":0},{"$f":"SUBTOTAL(109,SalesRevenue[รอบระยะเวลาปัจจุบันคิดเป็น % ของยอดขาย])","v":{"v":0,"d":"0.00%"}},{"$f":"SUBTOTAL(109,SalesRevenue[% การเปลี่ยนแปลงจากรอบระยะเวลาก่อนหน้า])","v":{"v":0,"d":"0.00%"}},{"$f":"SUBTOTAL(109,SalesRevenue[% การเปลี่ยนแปลงจากงบประมาณ])","v":{"v":0,"d":"0.00%"}}]

{"sheet":"รายรับ","index":2,"n_rows":7,"n_cols":9,"rows_kept":7,"merged":[[0,7,2,8]]}
[null,{"$f":"Workbook_Title","v":"งบกำไรขาดทุน"}]
[null,{"$f":"Company_Name","v":"ชื่อบริษัท"},"ระบุเป็น 000s"]
[null,"รายรับ",{"$f":"IFERROR(รายรับ[[#Totals],[รอบระยะเวลาปัจจุบัน]],\"-\")","v":0}]
[null,"ชนิดรายรับ","คำอธิบาย","รอบระยะเวลาก่อนหน้า","งบประมาณ","รอบระยะเวลาปัจจุบัน","รอบระยะเวลาปัจจุบันคิดเป็น % ของยอดขาย","% การเปลี่ยนแปลงจากรอบระยะเวลาก่อนหน้า","% การเปลี่ยนแปลงจากงบประมาณ"]
[null,"รายรับ","รายรับอื่นๆ",{"$nulls":3},{"$f":"IFERROR(IF(Sales_Revenue=0,\"-\",รายรับ[รอบระยะเวลาปัจจุบัน]/Sales_Revenue),\"-\")","v":"-"},{"$f":"IFERROR(IF(รายรับ[[#This Row],[รอบระยะเวลาก่อนหน้า]]=รายรับ[[#This Row],[รอบระยะเวลาปัจจุบัน]],0,IF(รายรับ[[#This Row],[รอบระยะเวลาปัจจุบัน]]>รายรับ[[#This Row],[รอบระยะเวลาก่อนหน้า]],ABS((รายรับ[[#This Row],[รอบระยะเวลาปัจจุบัน]]/รายรับ[[#This Row],[รอบระยะเวลาก่อนหน้า]])-1),IF(AND(รายรับ[[#This Row],[รอบระยะเวลาปัจจุบัน]]<รายรับ[[#This Row],[รอบระยะเวลาก่อนหน้า]],รายรับ[[#This Row],[รอบระยะเวลาก่อนหน้า]]<0),-((รายรับ[[#This Row],[รอบระยะเวลาปัจจุบัน]]/รายรับ[[#This Row],[รอบระยะเวลาก่อนหน้า]])-1),(รายรับ[[#This Row],[รอบระยะเวลาปัจจุบัน]]/รายรับ[[#This Row],[รอบระยะเวลาก่อนหน้า]])-1))),\"-\")","v":{"v":0,"d":"0.00%"}},{"$f":"IFERROR(IF(รายรับ[[#This Row],[งบประมาณ]]=รายรับ[[#This Row],[รอบระยะเวลาปัจจุบัน]],0,IF(รายรับ[[#This Row],[รอบระยะเวลาปัจจุบัน]]>รายรับ[[#This Row],[งบประมาณ]],ABS((รายรับ[[#This Row],[รอบระยะเวลาปัจจุบัน]]/รายรับ[[#This Row],[งบประมาณ]])-1),IF(AND(รายรับ[[#This Row],[รอบระยะเวลาปัจจุบัน]]<รายรับ[[#This Row],[งบประมาณ]],รายรับ[[#This Row],[งบประมาณ]]<0),-((รายรับ[[#This Row],[รอบระยะเวลาปัจจุบัน]]/รายรับ[[#This Row],[งบประมาณ]])-1),(รายรับ[[#This Row],[รอบระยะเวลาปัจจุบัน]]/รายรับ[[#This Row],[งบประมาณ]])-1))),\"-\")","v":{"v":0,"d":"0.00%"}}]
[{"$nulls":6},{"$f":"IFERROR(IF(Sales_Revenue=0,\"-\",รายรับ[รอบระยะเวลาปัจจุบัน]/Sales_Revenue),\"-\")","v":"-"},{"$f":"IFERROR(IF(รายรับ[[#This Row],[รอบระยะเวลาก่อนหน้า]]=รายรับ[[#This Row],[รอบระยะเวลาปัจจุบัน]],0,IF(รายรับ[[#This Row],[รอบระยะเวลาปัจจุบัน]]>รายรับ[[#This Row],[รอบระยะเวลาก่อนหน้า]],ABS((รายรับ[[#This Row],[รอบระยะเวลาปัจจุบัน]]/รายรับ[[#This Row],[รอบระยะเวลาก่อนหน้า]])-1),IF(AND(รายรับ[[#This Row],[รอบระยะเวลาปัจจุบัน]]<รายรับ[[#This Row],[รอบระยะเวลาก่อนหน้า]],รายรับ[[#This Row],[รอบระยะเวลาก่อนหน้า]]<0),-((รายรับ[[#This Row],[รอบระยะเวลาปัจจุบัน]]/รายรับ[[#This Row],[รอบระยะเวลาก่อนหน้า]])-1),(รายรับ[[#This Row],[รอบระยะเวลาปัจจุบัน]]/รายรับ[[#This Row],[รอบระยะเวลาก่อนหน้า]])-1))),\"-\")","v":{"v":0,"d":"0.00%"}},{"$f":"IFERROR(IF(รายรับ[[#This Row],[งบประมาณ]]=รายรับ[[#This Row],[รอบระยะเวลาปัจจุบัน]],0,IF(รายรับ[[#This Row],[รอบระยะเวลาปัจจุบัน]]>รายรับ[[#This Row],[งบประมาณ]],ABS((รายรับ[[#This Row],[รอบระยะเวลาปัจจุบัน]]/รายรับ[[#This Row],[งบประมาณ]])-1),IF(AND(รายรับ[[#This Row],[รอบระยะเวลาปัจจุบัน]]<รายรับ[[#This Row],[งบประมาณ]],รายรับ[[#This Row],[งบประมาณ]]<0),-((รายรับ[[#This Row],[รอบระยะเวลาปัจจุบัน]]/รายรับ[[#This Row],[งบประมาณ]])-1),(รายรับ[[#This Row],[รอบระยะเวลาปัจจุบัน]]/รายรับ[[#This Row],[งบประมาณ]])-1))),\"-\")","v":{"v":0,"d":"0.00%"}}]
[null,"ยอดรวมรายรับจากการขาย",null,{"$f":"SUBTOTAL(109,รายรับ[รอบระยะเวลาก่อนหน้า])","v":0},{"$f":"SUBTOTAL(109,รายรับ[งบประมาณ])","v":0},{"$f":"SUBTOTAL(109,รายรับ[รอบระยะเวลาปัจจุบัน])","v":0},{"$f":"SUBTOTAL(109,รายรับ[รอบระยะเวลาปัจจุบันคิดเป็น % ของยอดขาย])","v":{"v":0,"d":"0.00%"}},{"$f":"SUBTOTAL(109,รายรับ[% การเปลี่ยนแปลงจากรอบระยะเวลาก่อนหน้า])","v":{"v":0,"d":"0.00%"}},{"$f":"SUBTOTAL(109,รายรับ[% การเปลี่ยนแปลงจากงบประมาณ])","v":{"v":0,"d":"0.00%"}}]

{"sheet":"ค่าใช้จ่าย","index":3,"n_rows":25,"n_cols":9,"rows_kept":25,"merged":[[0,7,2,8]]}
[null,{"$f":"Workbook_Title","v":"งบกำไรขาดทุน"}]
[null,{"$f":"Company_Name","v":"ชื่อบริษัท"},"ระบุเป็น 000s"]
[null,"ค่าใช้จ่ายในการดำเนินการ",{"$f":"IFERROR(ค่าใช้จ่ายในการดำเนินการ[[#Totals],[รอบระยะเวลาปัจจุบัน]],\"-\")","v":0}]
[null,"ชนิดค่าใช้จ่าย","คำอธิบาย","รอบระยะเวลาก่อนหน้า","งบประมาณ","รอบระยะเวลาปัจจุบัน","รอบระยะเวลาปัจจุบันคิดเป็น % ของยอดขาย","% การเปลี่ยนแปลงจากรอบระยะเวลาก่อนหน้า","% การเปลี่ยนแปลงจากงบประมาณ"]
[null,"การขายและการตลาด","การโฆษณา",{"$nulls":3},{"$f":"IFERROR(IF(Sales_Revenue=0,\"-\",ค่าใช้จ่ายในการดำเนินการ[รอบระยะเวลาปัจจุบัน]/Sales_Revenue),\"-\")","v":"-"},{"$f":"IFERROR(IF(ค่าใช้จ่ายในการดำเนินการ[[#This Row],[รอบระยะเวลาก่อนหน้า]]=ค่าใช้จ่ายในการดำเนินการ[[#This Row],[รอบระยะเวลาปัจจุบัน]],0,IF(ค่าใช้จ่ายในการดำเนินการ[[#This Row],[รอบระยะเวลาปัจจุบัน]]>ค่าใช้จ่ายในการดำเนินการ[[#This Row],[รอบระยะเวลาก่อนหน้า]],ABS((ค่าใช้จ่ายในการดำเนินการ[[#This Row],[รอบระยะเวลาปัจจุบัน]]/ค่าใช้จ่ายในการดำเนินการ[[#This Row],[รอบระยะเวลาก่อนหน้า]])-1),IF(AND(ค่าใช้จ่ายในการดำเนินการ[[#This Row],[รอบระยะเวลาปัจจุบัน]]<ค่าใช้จ่ายในการดำเนินการ[[#This Row],[รอบระยะเวลาก่อนหน้า]],ค่าใช้จ่ายในการดำเนินการ[[#This Row],[รอบระยะเวลาก่อนหน้า]]<0),-((ค่าใช้จ่ายในการดำเนินการ[[#This Row],[รอบระยะเวลาปัจจุบัน]]/ค่าใช้จ่ายในการดำเนินการ[[#This Row],[รอบระยะเวลาก่อนหน้า]])-1),(ค่าใช้จ่ายในการดำเนินการ[[#This Row],[รอบระยะเวลาปัจจุบัน]]/ค่าใช้จ่ายในการดำเนินการ[[#This Row],[รอบระยะเวลาก่อนหน้า]])-1))),\"-\")","v":{"v":0,"d":"0.00%"}},{"$f":"IFERROR(IF(ค่าใช้จ่ายในการดำเนินการ[[#This Row],[งบประมาณ]]=ค่าใช้จ่ายในการดำเนินการ[[#This Row],[รอบระยะเวลาปัจจุบัน]],0,IF(ค่าใช้จ่ายในการดำเนินการ[[#This Row],[รอบระยะเวลาปัจจุบัน]]>ค่าใช้จ่ายในการดำเนินการ[[#This Row],[งบประมาณ]],ABS((ค่าใช้จ่ายในการดำเนินการ[[#This Row],[รอบระยะเวลาปัจจุบัน]]/ค่าใช้จ่ายในการดำเนินการ[[#This Row],[งบประมาณ]])-1),IF(AND(ค่าใช้จ่ายในการดำเนินการ[[#This Row],[รอบระยะเวลาปัจจุบัน]]<ค่าใช้จ่ายในการดำเนินการ[[#This Row],[งบประมาณ]],ค่าใช้จ่ายในการดำเนินการ[[#This Row],[งบประมาณ]]<0),-((ค่าใช้จ่ายในการดำเนินการ[[#This Row],[รอบระยะเวลาปัจจุบัน]]/ค่าใช้จ่ายในการดำเนินการ[[#This Row],[งบประมาณ]])-1),(ค่าใช้จ่ายในการดำเนินการ[[#This Row],[รอบระยะเวลาปัจจุบัน]]/ค่าใช้จ่ายในการดำเนินการ[[#This Row],[งบประมาณ]])-1))),\"-\")","v":{"v":0,"d":"0.00%"}}]
[null,"การขายและการตลาด","การตลาดทางตรง",{"$nulls":3},{"$f":"IFERROR(IF(Sales_Revenue=0,\"-\",ค่าใช้จ่ายในการดำเนินการ[รอบระยะเวลาปัจจุบัน]/Sales_Revenue),\"-\")","v":"-"},{"$f":"IFERROR(IF(ค่าใช้จ่ายในการดำเนินการ[[#This Row],[รอบระยะเวลาก่อนหน้า]]=ค่าใช้จ่ายในการดำเนินการ[[#This Row],[รอบระยะเวลาปัจจุบัน]],0,IF(ค่าใช้จ่ายในการดำเนินการ[[#This Row],[รอบระยะเวลาปัจจุบัน]]>ค่าใช้จ่ายในการดำเนินการ[[#This Row],[รอบระยะเวลาก่อนหน้า]],ABS((ค่าใช้จ่ายในการดำเนินการ[[#This Row],[รอบระยะเวลาปัจจุบัน]]/ค่าใช้จ่ายในการดำเนินการ[[#This Row],[รอบระยะเวลาก่อนหน้า]])-1),IF(AND(ค่าใช้จ่ายในการดำเนินการ[[#This Row],[รอบระยะเวลาปัจจุบัน]]<ค่าใช้จ่ายในการดำเนินการ[[#This Row],[รอบระยะเวลาก่อนหน้า]],ค่าใช้จ่ายในการดำเนินการ[[#This Row],[รอบระยะเวลาก่อนหน้า]]<0),-((ค่าใช้จ่ายในการดำเนินการ[[#This Row],[รอบระยะเวลาปัจจุบัน]]/ค่าใช้จ่ายในการดำเนินการ[[#This Row],[รอบระยะเวลาก่อนหน้า]])-1),(ค่าใช้จ่ายในการดำเนินการ[[#This Row],[รอบระยะเวลาปัจจุบัน]]/ค่าใช้จ่ายในการดำเนินการ[[#This Row],[รอบระยะเวลาก่อนหน้า]])-1))),\"-\")","v":{"v":0,"d":"0.00%"}},{"$f":"IFERROR(IF(ค่าใช้จ่ายในการดำเนินการ[[#This Row],[งบประมาณ]]=ค่าใช้จ่ายในการดำเนินการ[[#This Row],[รอบระยะเวลาปัจจุบัน]],0,IF(ค่าใช้จ่ายในการดำเนินการ[[#This Row],[รอบระยะเวลาปัจจุบัน]]>ค่าใช้จ่ายในการดำเนินการ[[#This Row],[งบประมาณ]],ABS((ค่าใช้จ่ายในการดำเนินการ[[#This Row],[รอบระยะเวลาปัจจุบัน]]/ค่าใช้จ่ายในการดำเนินการ[[#This Row],[งบประมาณ]])-1),IF(AND(ค่าใช้จ่ายในการดำเนินการ[[#This Row],[รอบระยะเวลาปัจจุบัน]]<ค่าใช้จ่ายในการดำเนินการ[[#This Row],[งบประมาณ]],ค่าใช้จ่ายในการดำเนินการ[[#This Row],[งบประมาณ]]<0),-((ค่าใช้จ่ายในการดำเนินการ[[#This Row],[รอบระยะเวลาปัจจุบัน]]/ค่าใช้จ่ายในการดำเนินการ[[#This Row],[งบประมาณ]])-1),(ค่าใช้จ่ายในการดำเนินการ[[#This Row],[รอบระยะเวลาปัจจุบัน]]/ค่าใช้จ่ายในการดำเนินการ[[#This Row],[งบประมาณ]])-1))),\"-\")","v":{"v":0,"d":"0.00%"}}]
[null,"การขายและการตลาด","ค่าใช้จ่ายอื่นๆ (โปรดระบุ)",{"$nulls":3},{"$f":"IFERROR(IF(Sales_Revenue=0,\"-\",ค่าใช้จ่ายในการดำเนินการ[รอบระยะเวลาปัจจุบัน]/Sales_Revenue),\"-\")","v":"-"},{"$f":"IFERROR(IF(ค่าใช้จ่ายในการดำเนินการ[[#This Row],[รอบระยะเวลาก่อนหน้า]]=ค่าใช้จ่ายในการดำเนินการ[[#This Row],[รอบระยะเวลาปัจจุบัน]],0,IF(ค่าใช้จ่ายในการดำเนินการ[[#This Row],[รอบระยะเวลาปัจจุบัน]]>ค่าใช้จ่ายในการดำเนินการ[[#This Row],[รอบระยะเวลาก่อนหน้า]],ABS((ค่าใช้จ่ายในการดำเนินการ[[#This Row],[รอบระยะเวลาปัจจุบัน]]/ค่าใช้จ่ายในการดำเนินการ[[#This Row],[รอบระยะเวลาก่อนหน้า]])-1),IF(AND(ค่าใช้จ่ายในการดำเนินการ[[#This Row],[รอบระยะเวลาปัจจุบัน]]<ค่าใช้จ่ายในการดำเนินการ[[#This Row],[รอบระยะเวลาก่อนหน้า]],ค่าใช้จ่ายในการดำเนินการ[[#This Row],[รอบระยะเวลาก่อนหน้า]]<0),-((ค่าใช้จ่ายในการดำเนินการ[[#This Row],[รอบระยะเวลาปัจจุบัน]]/ค่าใช้จ่ายในการดำเนินการ[[#This Row],[รอบระยะเวลาก่อนหน้า]])-1),(ค่าใช้จ่ายในการดำเนินการ[[#This Row],[รอบระยะเวลาปัจจุบัน]]/ค่าใช้จ่ายในการดำเนินการ[[#This Row],[รอบระยะเวลาก่อนหน้า]])-1))),\"-\")","v":{"v":0,"d":"0.00%"}},{"$f":"IFERROR(IF(ค่าใช้จ่ายในการดำเนินการ[[#This Row],[งบประมาณ]]=ค่าใช้จ่ายในการดำเนินการ[[#This Row],[รอบระยะเวลาปัจจุบัน]],0,IF(ค่าใช้จ่ายในการดำเนินการ[[#This Row],[รอบระยะเวลาปัจจุบัน]]>ค่าใช้จ่ายในการดำเนินการ[[#This Row],[งบประมาณ]],ABS((ค่าใช้จ่ายในการดำเนินการ[[#This Row],[รอบระยะเวลาปัจจุบัน]]/ค่าใช้จ่ายในการดำเนินการ[[#This Row],[งบประมาณ]])-1),IF(AND(ค่าใช้จ่ายในการดำเนินการ[[#This Row],[รอบระยะเวลาปัจจุบัน]]<ค่าใช้จ่ายในการดำเนินการ[[#This Row],[งบประมาณ]],ค่าใช้จ่ายในการดำเนินการ[[#This Row],[งบประมาณ]]<0),-((ค่าใช้จ่ายในการดำเนินการ[[#This Row],[รอบระยะเวลาปัจจุบัน]]/ค่าใช้จ่ายในการดำเนินการ[[#This Row],[งบประมาณ]])-1),(ค่าใช้จ่ายในการดำเนินการ[[#This Row],[รอบระยะเวลาปัจจุบัน]]/ค่าใช้จ่ายในการดำเนินการ[[#This Row],[งบประมาณ]])-1))),\"-\")","v":{"v":0,"d":"0.00%"}}]
[null,"การขายและการตลาด","ค่าใช้จ่ายอื่นๆ (โปรดระบุ)",{"$nulls":3},{"$f":"IFERROR(IF(Sales_Revenue=0,\"-\",ค่าใช้จ่ายในการดำเนินการ[รอบระยะเวลาปัจจุบัน]/Sales_Revenue),\"-\")","v":"-"},{"$f":"IFERROR(IF(ค่าใช้จ่ายในการดำเนินการ[[#This Row],[รอบระยะเวลาก่อนหน้า]]=ค่าใช้จ่ายในการดำเนินการ[[#This Row],[รอบระยะเวลาปัจจุบัน]],0,IF(ค่าใช้จ่ายในการดำเนินการ[[#This Row],[รอบระยะเวลาปัจจุบัน]]>ค่าใช้จ่ายในการดำเนินการ[[#This Row],[รอบระยะเวลาก่อนหน้า]],ABS((ค่าใช้จ่ายในการดำเนินการ[[#This Row],[รอบระยะเวลาปัจจุบัน]]/ค่าใช้จ่ายในการดำเนินการ[[#This Row],[รอบระยะเวลาก่อนหน้า]])-1),IF(AND(ค่าใช้จ่ายในการดำเนินการ[[#This Row],[รอบระยะเวลาปัจจุบัน]]<ค่าใช้จ่ายในการดำเนินการ[[#This Row],[รอบระยะเวลาก่อนหน้า]],ค่าใช้จ่ายในการดำเนินการ[[#This Row],[รอบระยะเวลาก่อนหน้า]]<0),-((ค่าใช้จ่ายในการดำเนินการ[[#This Row],[รอบระยะเวลาปัจจุบัน]]/ค่าใช้จ่ายในการดำเนินการ[[#This Row],[รอบระยะเวลาก่อนหน้า]])-1),(ค่าใช้จ่ายในการดำเนินการ[[#This Row],[รอบระยะเวลาปัจจุบัน]]/ค่าใช้จ่ายในการดำเนินการ[[#This Row],[รอบระยะเวลาก่อนหน้า]])-1))),\"-\")","v":{"v":0,"d":"0.00%"}},{"$f":"IFERROR(IF(ค่าใช้จ่ายในการดำเนินการ[[#This Row],[งบประมาณ]]=ค่าใช้จ่ายในการดำเนินการ[[#This Row],[รอบระยะเวลาปัจจุบัน]],0,IF(ค่าใช้จ่ายในการดำเนินการ[[#This Row],[รอบระยะเวลาปัจจุบัน]]>ค่าใช้จ่ายในการดำเนินการ[[#This Row],[งบประมาณ]],ABS((ค่าใช้จ่ายในการดำเนินการ[[#This Row],[รอบระยะเวลาปัจจุบัน]]/ค่าใช้จ่ายในการดำเนินการ[[#This Row],[งบประมาณ]])-1),IF(AND(ค่าใช้จ่ายในการดำเนินการ[[#This Row],[รอบระยะเวลาปัจจุบัน]]<ค่าใช้จ่ายในการดำเนินการ[[#This Row],[งบประมาณ]],ค่าใช้จ่ายในการดำเนินการ[[#This Row],[งบประมาณ]]<0),-((ค่าใช้จ่ายในการดำเนินการ[[#This Row],[รอบระยะเวลาปัจจุบัน]]/ค่าใช้จ่ายในการดำเนินการ[[#This Row],[งบประมาณ]])-1),(ค่าใช้จ่ายในการดำเนินการ[[#This Row],[รอบระยะเวลาปัจจุบัน]]/ค่าใช้จ่ายในการดำเนินการ[[#This Row],[งบประมาณ]])-1))),\"-\")","v":{"v":0,"d":"0.00%"}}]
[null,"การวิจัยและการพัฒนา","สิทธิ์การใช้งานเทคโนโลยี",{"$nulls":3},{"$f":"IFERROR(IF(Sales_Revenue=0,\"-\",ค่าใช้จ่ายในการดำเนินการ[รอบระยะเวลาปัจจุบัน]/Sales_Revenue),\"-\")","v":"-"},{"$f":"IFERROR(IF(ค่าใช้จ่ายในการดำเนินการ[[#This Row],[รอบระยะเวลาก่อนหน้า]]=ค่าใช้จ่ายในการดำเนินการ[[#This Row],[รอบระยะเวลาปัจจุบัน]],0,IF(ค่าใช้จ่ายในการดำเนินการ[[#This Row],[รอบระยะเวลาปัจจุบัน]]>ค่าใช้จ่ายในการดำเนินการ[[#This Row],[รอบระยะเวลาก่อนหน้า]],ABS((ค่าใช้จ่ายในการดำเนินการ[[#This Row],[รอบระยะเวลาปัจจุบัน]]/ค่าใช้จ่ายในการดำเนินการ[[#This Row],[รอบระยะเวลาก่อนหน้า]])-1),IF(AND(ค่าใช้จ่ายในการดำเนินการ[[#This Row],[รอบระยะเวลาปัจจุบัน]]<ค่าใช้จ่ายในการดำเนินการ[[#This Row],[รอบระยะเวลาก่อนหน้า]],ค่าใช้จ่ายในการดำเนินการ[[#This Row],[รอบระยะเวลาก่อนหน้า]]<0),-((ค่าใช้จ่ายในการดำเนินการ[[#This Row],[รอบระยะเวลาปัจจุบัน]]/ค่าใช้จ่ายในการดำเนินการ[[#This Row],[รอบระยะเวลาก่อนหน้า]])-1),(ค่าใช้จ่ายในการดำเนินการ[[#This Row],[รอบระยะเวลาปัจจุบัน]]/ค่าใช้จ่ายในการดำเนินการ[[#This Row],[รอบระยะเวลาก่อนหน้า]])-1))),\"-\")","v":{"v":0,"d":"0.00%"}},{"$f":"IFERROR(IF(ค่าใช้จ่ายในการดำเนินการ[[#This Row],[งบประมาณ]]=ค่าใช้จ่ายในการดำเนินการ[[#This Row],[รอบระยะเวลาปัจจุบัน]],0,IF(ค่าใช้จ่ายในการดำเนินการ[[#This Row],[รอบระยะเวลาปัจจุบัน]]>ค่าใช้จ่ายในการดำเนินการ[[#This Row],[งบประมาณ]],ABS((ค่าใช้จ่ายในการดำเนินการ[[#This Row],[รอบระยะเวลาปัจจุบัน]]/ค่าใช้จ่ายในการดำเนินการ[[#This Row],[งบประมาณ]])-1),IF(AND(ค่าใช้จ่ายในการดำเนินการ[[#This Row],[รอบระยะเวลาปัจจุบัน]]<ค่าใช้จ่ายในการดำเนินการ[[#This Row],[งบประมาณ]],ค่าใช้จ่ายในการดำเนินการ[[#This Row],[งบประมาณ]]<0),-((ค่าใช้จ่ายในการดำเนินการ[[#This Row],[รอบระยะเวลาปัจจุบัน]]/ค่าใช้จ่ายในการดำเนินการ[[#This Row],[งบประมาณ]])-1),(ค่าใช้จ่ายในการดำเนินการ[[#This Row],[รอบระยะเวลาปัจจุบัน]]/ค่าใช้จ่ายในการดำเนินการ[[#This Row],[งบประมาณ]])-1))),\"-\")","v":{"v":0,"d":"0.00%"}}]
[null,"การวิจัยและการพัฒนา","สิทธิ ",{"$nulls":3},{"$f":"IFERROR(IF(Sales_Revenue=0,\"-\",ค่าใช้จ่ายในการดำเนินการ[รอบระยะเวลาปัจจุบัน]/Sales_Revenue),\"-\")","v":"-"},{"$f":"IFERROR(IF(ค่าใช้จ่ายในการดำเนินการ[[#This Row],[รอบระยะเวลาก่อนหน้า]]=ค่าใช้จ่ายในการดำเนินการ[[#This Row],[รอบระยะเวลาปัจจุบัน]],0,IF(ค่าใช้จ่ายในการดำเนินการ[[#This Row],[รอบระยะเวลาปัจจุบัน]]>ค่าใช้จ่ายในการดำเนินการ[[#This Row],[รอบระยะเวลาก่อนหน้า]],ABS((ค่าใช้จ่ายในการดำเนินการ[[#This Row],[รอบระยะเวลาปัจจุบัน]]/ค่าใช้จ่ายในการดำเนินการ[[#This Row],[รอบระยะเวลาก่อนหน้า]])-1),IF(AND(ค่าใช้จ่ายในการดำเนินการ[[#This Row],[รอบระยะเวลาปัจจุบัน]]<ค่าใช้จ่ายในการดำเนินการ[[#This Row],[รอบระยะเวลาก่อนหน้า]],ค่าใช้จ่ายในการดำเนินการ[[#This Row],[รอบระยะเวลาก่อนหน้า]]<0),-((ค่าใช้จ่ายในการดำเนินการ[[#This Row],[รอบระยะเวลาปัจจุบัน]]/ค่าใช้จ่ายในการดำเนินการ[[#This Row],[รอบระยะเวลาก่อนหน้า]])-1),(ค่าใช้จ่ายในการดำเนินการ[[#This Row],[รอบระยะเวลาปัจจุบัน]]/ค่าใช้จ่ายในการดำเนินการ[[#This Row],[รอบระยะเวลาก่อนหน้า]])-1))),\"-\")","v":{"v":0,"d":"0.00%"}},{"$f":"IFERROR(IF(ค่าใช้จ่ายในการดำเนินการ[[#This Row],[งบประมาณ]]=ค่าใช้จ่ายในการดำเนินการ[[#This Row],[รอบระยะเวลาปัจจุบัน]],0,IF(ค่าใช้จ่ายในการดำเนินการ[[#This Row],[รอบระยะเวลาปัจจุบัน]]>ค่าใช้จ่ายในการดำเนินการ[[#This Row],[งบประมาณ]],ABS((ค่าใช้จ่ายในการดำเนินการ[[#This Row],[รอบระยะเวลาปัจจุบัน]]/ค่าใช้จ่ายในการดำเนินการ[[#This Row],[งบประมาณ]])-1),IF(AND(ค่าใช้จ่ายในการดำเนินการ[[#This Row],[รอบระยะเวลาปัจจุบัน]]<ค่าใช้จ่ายในการดำเนินการ[[#This Row],[งบประมาณ]],ค่าใช้จ่ายในการดำเนินการ[[#This Row],[งบประมาณ]]<0),-((ค่าใช้จ่ายในการดำเนินการ[[#This Row],[รอบระยะเวลาปัจจุบัน]]/ค่าใช้จ่ายในการดำเนินการ[[#This Row],[งบประมาณ]])-1),(ค่าใช้จ่ายในการดำเนินการ[[#This Row],[รอบระยะเวลาปัจจุบัน]]/ค่าใช้จ่ายในการดำเนินการ[[#This Row],[งบประมาณ]])-1))),\"-\")","v":{"v":0,"d":"0.00%"}}]
[null,"การวิจัยและการพัฒนา","ค่าใช้จ่ายอื่นๆ (โปรดระบุ)",{"$nulls":3},{"$f":"IFERROR(IF(Sales_Revenue=0,\"-\",ค่าใช้จ่ายในการดำเนินการ[รอบระยะเวลาปัจจุบัน]/Sales_Revenue),\"-\")","v":"-"},{"$f":"IFERROR(IF(ค่าใช้จ่ายในการดำเนินการ[[#This Row],[รอบระยะเวลาก่อนหน้า]]=ค่าใช้จ่ายในการดำเนินการ[[#This Row],[รอบระยะเวลาปัจจุบัน]],0,IF(ค่าใช้จ่ายในการดำเนินการ[[#This Row],[รอบระยะเวลาปัจจุบัน]]>ค่าใช้จ่ายในการดำเนินการ[[#This Row],[รอบระยะเวลาก่อนหน้า]],ABS((ค่าใช้จ่ายในการดำเนินการ[[#This Row],[รอบระยะเวลาปัจจุบัน]]/ค่าใช้จ่ายในการดำเนินการ[[#This Row],[รอบระยะเวลาก่อนหน้า]])-1),IF(AND(ค่าใช้จ่ายในการดำเนินการ[[#This Row],[รอบระยะเวลาปัจจุบัน]]<ค่าใช้จ่ายในการดำเนินการ[[#This Row],[รอบระยะเวลาก่อนหน้า]],ค่าใช้จ่ายในการดำเนินการ[[#This Row],[รอบระยะเวลาก่อนหน้า]]<0),-((ค่าใช้จ่ายในการดำเนินการ[[#This Row],[รอบระยะเวลาปัจจุบัน]]/ค่าใช้จ่ายในการดำเนินการ[[#This Row],[รอบระยะเวลาก่อนหน้า]])-1),(ค่าใช้จ่ายในการดำเนินการ[[#This Row],[รอบระยะเวลาปัจจุบัน]]/ค่าใช้จ่ายในการดำเนินการ[[#This Row],[รอบระยะเวลาก่อนหน้า]])-1))),\"-\")","v":{"v":0,"d":"0.00%"}},{"$f":"IFERROR(IF(ค่าใช้จ่ายในการดำเนินการ[[#This Row],[งบประมาณ]]=ค่าใช้จ่ายในการดำเนินการ[[#This Row],[รอบระยะเวลาปัจจุบัน]],0,IF(ค่าใช้จ่ายในการดำเนินการ[[#This Row],[รอบระยะเวลาปัจจุบัน]]>ค่าใช้จ่ายในการดำเนินการ[[#This Row],[งบประมาณ]],ABS((ค่าใช้จ่ายในการดำเนินการ[[#This Row],[รอบระยะเวลาปัจจุบัน]]/ค่าใช้จ่ายในการดำเนินการ[[#This Row],[งบประมาณ]])-1),IF(AND(ค่าใช้จ่ายในการดำเนินการ[[#This Row],[รอบระยะเวลาปัจจุบัน]]<ค่าใช้จ่ายในการดำเนินการ[[#This Row],[งบประมาณ]],ค่าใช้จ่ายในการดำเนินการ[[#This Row],[งบประมาณ]]<0),-((ค่าใช้จ่ายในการดำเนินการ[[#This Row],[รอบระยะเวลาปัจจุบัน]]/ค่าใช้จ่ายในการดำเนินการ[[#This Row],[งบประมาณ]])-1),(ค่าใช้จ่ายในการดำเนินการ[[#This Row],[รอบระยะเวลาปัจจุบัน]]/ค่าใช้จ่ายในการดำเนินการ[[#This Row],[งบประมาณ]])-1))),\"-\")","v":{"v":0,"d":"0.00%"}}]
[null,"การวิจัยและการพัฒนา","ค่าใช้จ่ายอื่นๆ (โปรดระบุ)",{"$nulls":3},{"$f":"IFERROR(IF(Sales_Revenue=0,\"-\",ค่าใช้จ่ายในการดำเนินการ[รอบระยะเวลาปัจจุบัน]/Sales_Revenue),\"-\")","v":"-"},{"$f":"IFERROR(IF(ค่าใช้จ่ายในการดำเนินการ[[#This Row],[รอบระยะเวลาก่อนหน้า]]=ค่าใช้จ่ายในการดำเนินการ[[#This Row],[รอบระยะเวลาปัจจุบัน]],0,IF(ค่าใช้จ่ายในการดำเนินการ[[#This Row],[รอบระยะเวลาปัจจุบัน]]>ค่าใช้จ่ายในการดำเนินการ[[#This Row],[รอบระยะเวลาก่อนหน้า]],ABS((ค่าใช้จ่ายในการดำเนินการ[[#This Row],[รอบระยะเวลาปัจจุบัน]]/ค่าใช้จ่ายในการดำเนินการ[[#This Row],[รอบระยะเวลาก่อนหน้า]])-1),IF(AND(ค่าใช้จ่ายในการดำเนินการ[[#This Row],[รอบระยะเวลาปัจจุบัน]]<ค่าใช้จ่ายในการดำเนินการ[[#This Row],[รอบระยะเวลาก่อนหน้า]],ค่าใช้จ่ายในการดำเนินการ[[#This Row],[รอบระยะเวลาก่อนหน้า]]<0),-((ค่าใช้จ่ายในการดำเนินการ[[#This Row],[รอบระยะเวลาปัจจุบัน]]/ค่าใช้จ่ายในการดำเนินการ[[#This Row],[รอบระยะเวลาก่อนหน้า]])-1),(ค่าใช้จ่ายในการดำเนินการ[[#This Row],[รอบระยะเวลาปัจจุบัน]]/ค่าใช้จ่ายในการดำเนินการ[[#This Row],[รอบระยะเวลาก่อนหน้า]])-1))),\"-\")","v":{"v":0,"d":"0.00%"}},{"$f":"IFERROR(IF(ค่าใช้จ่ายในการดำเนินการ[[#This Row],[งบประมาณ]]=ค่าใช้จ่ายในการดำเนินการ[[#This Row],[รอบระยะเวลาปัจจุบัน]],0,IF(ค่าใช้จ่ายในการดำเนินการ[[#This Row],[รอบระยะเวลาปัจจุบัน]]>ค่าใช้จ่ายในการดำเนินการ[[#This Row],[งบประมาณ]],ABS((ค่าใช้จ่ายในการดำเนินการ[[#This Row],[รอบระยะเวลาปัจจุบัน]]/ค่าใช้จ่ายในการดำเนินการ[[#This Row],[งบประมาณ]])-1),IF(AND(ค่าใช้จ่ายในการดำเนินการ[[#This Row],[รอบระยะเวลาปัจจุบัน]]<ค่าใช้จ่ายในการดำเนินการ[[#This Row],[งบประมาณ]],ค่าใช้จ่ายในการดำเนินการ[[#This Row],[งบประมาณ]]<0),-((ค่าใช้จ่ายในการดำเนินการ[[#This Row],[รอบระยะเวลาปัจจุบัน]]/ค่าใช้จ่ายในการดำเนินการ[[#This Row],[งบประมาณ]])-1),(ค่าใช้จ่ายในการดำเนินการ[[#This Row],[รอบระยะเวลาปัจจุบัน]]/ค่าใช้จ่ายในการดำเนินการ[[#This Row],[งบประมาณ]])-1))),\"-\")","v":{"v":0,"d":"0.00%"}}]
[null,"ทั่วไปและการดูแล","ค่าจ้างและเงินเดือน",{"$nulls":3},{"$f":"IFERROR(IF(Sales_Revenue=0,\"-\",ค่าใช้จ่ายในการดำเนินการ[รอบระยะเวลาปัจจุบัน]/Sales_Revenue),\"-\")","v":"-"},{"$f":"IFERROR(IF(ค่าใช้จ่ายในการดำเนินการ[[#This Row],[รอบระยะเวลาก่อนหน้า]]=ค่าใช้จ่ายในการดำเนินการ[[#This Row],[รอบระยะเวลาปัจจุบัน]],0,IF(ค่าใช้จ่ายในการดำเนินการ[[#This Row],[รอบระยะเวลาปัจจุบัน]]>ค่าใช้จ่ายในการดำเนินการ[[#This Row],[รอบระยะเวลาก่อนหน้า]],ABS((ค่าใช้จ่ายในการดำเนินการ[[#This Row],[รอบระยะเวลาปัจจุบัน]]/ค่าใช้จ่ายในการดำเนินการ[[#This Row],[รอบระยะเวลาก่อนหน้า]])-1),IF(AND(ค่าใช้จ่ายในการดำเนินการ[[#This Row],[รอบระยะเวลาปัจจุบัน]]<ค่าใช้จ่ายในการดำเนินการ[[#This Row],[รอบระยะเวลาก่อนหน้า]],ค่าใช้จ่ายในการดำเนินการ[[#This Row],[รอบระยะเวลาก่อนหน้า]]<0),-((ค่าใช้จ่ายในการดำเนินการ[[#This Row],[รอบระยะเวลาปัจจุบัน]]/ค่าใช้จ่ายในการดำเนินการ[[#This Row],[รอบระยะเวลาก่อนหน้า]])-1),(ค่าใช้จ่ายในการดำเนินการ[[#This Row],[รอบระยะเวลาปัจจุบัน]]/ค่าใช้จ่ายในการดำเนินการ[[#This Row],[รอบระยะเวลาก่อนหน้า]])-1))),\"-\")","v":{"v":0,"d":"0.00%"}},{"$f":"IFERROR(IF(ค่าใช้จ่ายในการดำเนินการ[[#This Row],[งบประมาณ]]=ค่าใช้จ่ายในการดำเนินการ[[#This Row],[รอบระยะเวลาปัจจุบัน]],0,IF(ค่าใช้จ่ายในการดำเนินการ[[#This Row],[รอบระยะเวลาปัจจุบัน]]>ค่าใช้จ่ายในการดำเนินการ[[#This Row],[งบประมาณ]],ABS((ค่าใช้จ่ายในการดำเนินการ[[#This Row],[รอบระยะเวลาปัจจุบัน]]/ค่าใช้จ่ายในการดำเนินการ[[#This Row],[งบประมาณ]])-1),IF(AND(ค่าใช้จ่ายในการดำเนินการ[[#This Row],[รอบระยะเวลาปัจจุบัน]]<ค่าใช้จ่ายในการดำเนินการ[[#This Row],[งบประมาณ]],ค่าใช้จ่ายในการดำเนินการ[[#This Row],[งบประมาณ]]<0),-((ค่าใช้จ่ายในการดำเนินการ[[#This Row],[รอบระยะเวลาปัจจุบัน]]/ค่าใช้จ่ายในการดำเนินการ[[#This Row],[งบประมาณ]])-1),(ค่าใช้จ่ายในการดำเนินการ[[#This Row],[รอบระยะเวลาปัจจุบัน]]/ค่าใช้จ่ายในการดำเนินการ[[#This Row],[งบประมาณ]])-1))),\"-\")","v":{"v":0,"d":"0.00%"}}]
[null,"ทั่วไปและการดูแล","บริการภายนอก",{"$nulls":3},{"$f":"IFERROR(IF(Sales_Revenue=0,\"-\",ค่าใช้จ่ายในการดำเนินการ[รอบระยะเวลาปัจจุบัน]/Sales_Revenue),\"-\")","v":"-"},{"$f":"IFERROR(IF(ค่าใช้จ่ายในการดำเนินการ[[#This Row],[รอบระยะเวลาก่อนหน้า]]=ค่าใช้จ่ายในการดำเนินการ[[#This Row],[รอบระยะเวลาปัจจุบัน]],0,IF(ค่าใช้จ่ายในการดำเนินการ[[#This Row],[รอบระยะเวลาปัจจุบัน]]>ค่าใช้จ่ายในการดำเนินการ[[#This Row],[รอบระยะเวลาก่อนหน้า]],ABS((ค่าใช้จ่ายในการดำเนินการ[[#This Row],[รอบระยะเวลาปัจจุบัน]]/ค่าใช้จ่ายในการดำเนินการ[[#This Row],[รอบระยะเวลาก่อนหน้า]])-1),IF(AND(ค่าใช้จ่ายในการดำเนินการ[[#This Row],[รอบระยะเวลาปัจจุบัน]]<ค่าใช้จ่ายในการดำเนินการ[[#This Row],[รอบระยะเวลาก่อนหน้า]],ค่าใช้จ่ายในการดำเนินการ[[#This Row],[รอบระยะเวลาก่อนหน้า]]<0),-((ค่าใช้จ่ายในการดำเนินการ[[#This Row],[รอบระยะเวลาปัจจุบัน]]/ค่าใช้จ่ายในการดำเนินการ[[#This Row],[รอบระยะเวลาก่อนหน้า]])-1),(ค่าใช้จ่ายในการดำเนินการ[[#This Row],[รอบระยะเวลาปัจจุบัน]]/ค่าใช้จ่ายในการดำเนินการ[[#This Row],[รอบระยะเวลาก่อนหน้า]])-1))),\"-\")","v":{"v":0,"d":"0.00%"}},{"$f":"IFERROR(IF(ค่าใช้จ่ายในการดำเนินการ[[#This Row],[งบประมาณ]]=ค่าใช้จ่ายในการดำเนินการ[[#This Row],[รอบระยะเวลาปัจจุบัน]],0,IF(ค่าใช้จ่ายในการดำเนินการ[[#This Row],[รอบระยะเวลาปัจจุบัน]]>ค่าใช้จ่ายในการดำเนินการ[[#This Row],[งบประมาณ]],ABS((ค่าใช้จ่ายในการดำเนินการ[[#This Row],[รอบระยะเวลาปัจจุบัน]]/ค่าใช้จ่ายในการดำเนินการ[[#This Row],[งบประมาณ]])-1),IF(AND(ค่าใช้จ่ายในการดำเนินการ[[#This Row],[รอบระยะเวลาปัจจุบัน]]<ค่าใช้จ่ายในการดำเนินการ[[#This Row],[งบประมาณ]],ค่าใช้จ่ายในการดำเนินการ[[#This Row],[งบประมาณ]]<0),-((ค่าใช้จ่ายในการดำเนินการ[[#This Row],[รอบระยะเวลาปัจจุบัน]]/ค่าใช้จ่ายในการดำเนินการ[[#This Row],[งบประมาณ]])-1),(ค่าใช้จ่ายในการดำเนินการ[[#This Row],[รอบระยะเวลาปัจจุบัน]]/ค่าใช้จ่ายในการดำเนินการ[[#This Row],[งบประมาณ]])-1))),\"-\")","v":{"v":0,"d":"0.00%"}}]
[null,"ทั่วไปและการดูแล","อุปกรณ์ต่างๆ",{"$nulls":3},{"$f":"IFERROR(IF(Sales_Revenue=0,\"-\",ค่าใช้จ่ายในการดำเนินการ[รอบระยะเวลาปัจจุบัน]/Sales_Revenue),\"-\")","v":"-"},{"$f":"IFERROR(IF(ค่าใช้จ่ายในการดำเนินการ[[#This Row],[รอบระยะเวลาก่อนหน้า]]=ค่าใช้จ่ายในการดำเนินการ[[#This Row],[รอบระยะเวลาปัจจุบัน]],0,IF(ค่าใช้จ่ายในการดำเนินการ[[#This Row],[รอบระยะเวลาปัจจุบัน]]>ค่าใช้จ่ายในการดำเนินการ[[#This Row],[รอบระยะเวลาก่อนหน้า]],ABS((ค่าใช้จ่ายในการดำเนินการ[[#This Row],[รอบระยะเวลาปัจจุบัน]]/ค่าใช้จ่ายในการดำเนินการ[[#This Row],[รอบระยะเวลาก่อนหน้า]])-1),IF(AND(ค่าใช้จ่ายในการดำเนินการ[[#This Row],[รอบระยะเวลาปัจจุบัน]]<ค่าใช้จ่ายในการดำเนินการ[[#This Row],[รอบระยะเวลาก่อนหน้า]],ค่าใช้จ่ายในการดำเนินการ[[#This Row],[รอบระยะเวลาก่อนหน้า]]<0),-((ค่าใช้จ่ายในการดำเนินการ[[#This Row],[รอบระยะเวลาปัจจุบัน]]/ค่าใช้จ่ายในการดำเนินการ[[#This Row],[รอบระยะเวลาก่อนหน้า]])-1),(ค่าใช้จ่ายในการดำเนินการ[[#This Row],[รอบระยะเวลาปัจจุบัน]]/ค่าใช้จ่ายในการดำเนินการ[[#This Row],[รอบระยะเวลาก่อนหน้า]])-1))),\"-\")","v":{"v":0,"d":"0.00%"}},{"$f":"IFERROR(IF(ค่าใช้จ่ายในการดำเนินการ[[#This Row],[งบประมาณ]]=ค่าใช้จ่ายในการดำเนินการ[[#This Row],[รอบระยะเวลาปัจจุบัน]],0,IF(ค่าใช้จ่ายในการดำเนินการ[[#This Row],[รอบระยะเวลาปัจจุบัน]]>ค่าใช้จ่ายในการดำเนินการ[[#This Row],[งบประมาณ]],ABS((ค่าใช้จ่ายในการดำเนินการ[[#This Row],[รอบระยะเวลาปัจจุบัน]]/ค่าใช้จ่ายในการดำเนินการ[[#This Row],[งบประมาณ]])-1),IF(AND(ค่าใช้จ่ายในการดำเนินการ[[#This Row],[รอบระยะเวลาปัจจุบัน]]<ค่าใช้จ่ายในการดำเนินการ[[#This Row],[งบประมาณ]],ค่าใช้จ่ายในการดำเนินการ[[#This Row],[งบประมาณ]]<0),-((ค่าใช้จ่ายในการดำเนินการ[[#This Row],[รอบระยะเวลาปัจจุบัน]]/ค่าใช้จ่ายในการดำเนินการ[[#This Row],[งบประมาณ]])-1),(ค่าใช้จ่ายในการดำเนินการ[[#This Row],[รอบระยะเวลาปัจจุบัน]]/ค่าใช้จ่ายในการดำเนินการ[[#This Row],[งบประมาณ]])-1))),\"-\")","v":{"v":0,"d":"0.00%"}}]
[null,"ทั่วไปและการดูแล","อาหารและความบันเทิง",{"$nulls":3},{"$f":"IFERROR(IF(Sales_Revenue=0,\"-\",ค่าใช้จ่ายในการดำเนินการ[รอบระยะเวลาปัจจุบัน]/Sales_Revenue),\"-\")","v":"-"},{"$f":"IFERROR(IF(ค่าใช้จ่ายในการดำเนินการ[[#This Row],[รอบระยะเวลาก่อนหน้า]]=ค่าใช้จ่ายในการดำเนินการ[[#This Row],[รอบระยะเวลาปัจจุบัน]],0,IF(ค่าใช้จ่ายในการดำเนินการ[[#This Row],[รอบระยะเวลาปัจจุบัน]]>ค่าใช้จ่ายในการดำเนินการ[[#This Row],[รอบระยะเวลาก่อนหน้า]],ABS((ค่าใช้จ่ายในการดำเนินการ[[#This Row],[รอบระยะเวลาปัจจุบัน]]/ค่าใช้จ่ายในการดำเนินการ[[#This Row],[รอบระยะเวลาก่อนหน้า]])-1),IF(AND(ค่าใช้จ่ายในการดำเนินการ[[#This Row],[รอบระยะเวลาปัจจุบัน]]<ค่าใช้จ่ายในการดำเนินการ[[#This Row],[รอบระยะเวลาก่อนหน้า]],ค่าใช้จ่ายในการดำเนินการ[[#This Row],[รอบระยะเวลาก่อนหน้า]]<0),-((ค่าใช้จ่ายในการดำเนินการ[[#This Row],[รอบระยะเวลาปัจจุบัน]]/ค่าใช้จ่ายในการดำเนินการ[[#This Row],[รอบระยะเวลาก่อนหน้า]])-1),(ค่าใช้จ่ายในการดำเนินการ[[#This Row],[รอบระยะเวลาปัจจุบัน]]/ค่าใช้จ่ายในการดำเนินการ[[#This Row],[รอบระยะเวลาก่อนหน้า]])-1))),\"-\")","v":{"v":0,"d":"0.00%"}},{"$f":"IFERROR(IF(ค่าใช้จ่ายในการดำเนินการ[[#This Row],[งบประมาณ]]=ค่าใช้จ่ายในการดำเนินการ[[#This Row],[รอบระยะเวลาปัจจุบัน]],0,IF(ค่าใช้จ่ายในการดำเนินการ[[#This Row],[รอบระยะเวลาปัจจุบัน]]>ค่าใช้จ่ายในการดำเนินการ[[#This Row],[งบประมาณ]],ABS((ค่าใช้จ่ายในการดำเนินการ[[#This Row],[รอบระยะเวลาปัจจุบัน]]/ค่าใช้จ่ายในการดำเนินการ[[#This Row],[งบประมาณ]])-1),IF(AND(ค่าใช้จ่ายในการดำเนินการ[[#This Row],[รอบระยะเวลาปัจจุบัน]]<ค่าใช้จ่ายในการดำเนินการ[[#This Row],[งบประมาณ]],ค่าใช้จ่ายในการดำเนินการ[[#This Row],[งบประมาณ]]<0),-((ค่าใช้จ่ายในการดำเนินการ[[#This Row],[รอบระยะเวลาปัจจุบัน]]/ค่าใช้จ่ายในการดำเนินการ[[#This Row],[งบประมาณ]])-1),(ค่าใช้จ่ายในการดำเนินการ[[#This Row],[รอบระยะเวลาปัจจุบัน]]/ค่าใช้จ่ายในการดำเนินการ[[#This Row],[งบประมาณ]])-1))),\"-\")","v":{"v":0,"d":"0.00%"}}]
[null,"ทั่วไปและการดูแล","ค่าเช่า",{"$nulls":3},{"$f":"IFERROR(IF(Sales_Revenue=0,\"-\",ค่าใช้จ่ายในการดำเนินการ[รอบระยะเวลาปัจจุบัน]/Sales_Revenue),\"-\")","v":"-"},{"$f":"IFERROR(IF(ค่าใช้จ่ายในการดำเนินการ[[#This Row],[รอบระยะเวลาก่อนหน้า]]=ค่าใช้จ่ายในการดำเนินการ[[#This Row],[รอบระยะเวลาปัจจุบัน]],0,IF(ค่าใช้จ่ายในการดำเนินการ[[#This Row],[รอบระยะเวลาปัจจุบัน]]>ค่าใช้จ่ายในการดำเนินการ[[#This Row],[รอบระยะเวลาก่อนหน้า]],ABS((ค่าใช้จ่ายในการดำเนินการ[[#This Row],[รอบระยะเวลาปัจจุบัน]]/ค่าใช้จ่ายในการดำเนินการ[[#This Row],[รอบระยะเวลาก่อนหน้า]])-1),IF(AND(ค่าใช้จ่ายในการดำเนินการ[[#This Row],[รอบระยะเวลาปัจจุบัน]]<ค่าใช้จ่ายในการดำเนินการ[[#This Row],[รอบระยะเวลาก่อนหน้า]],ค่าใช้จ่ายในการดำเนินการ[[#This Row],[รอบระยะเวลาก่อนหน้า]]<0),-((ค่าใช้จ่ายในการดำเนินการ[[#This Row],[รอบระยะเวลาปัจจุบัน]]/ค่าใช้จ่ายในการดำเนินการ[[#This Row],[รอบระยะเวลาก่อนหน้า]])-1),(ค่าใช้จ่ายในการดำเนินการ[[#This Row],[รอบระยะเวลาปัจจุบัน]]/ค่าใช้จ่ายในการดำเนินการ[[#This Row],[รอบระยะเวลาก่อนหน้า]])-1))),\"-\")","v":{"v":0,"d":"0.00%"}},{"$f":"IFERROR(IF(ค่าใช้จ่ายในการดำเนินการ[[#This Row],[งบประมาณ]]=ค่าใช้จ่ายในการดำเนินการ[[#This Row],[รอบระยะเวลาปัจจุบัน]],0,IF(ค่าใช้จ่ายในการดำเนินการ[[#This Row],[รอบระยะเวลาปัจจุบัน]]>ค่าใช้จ่ายในการดำเนินการ[[#This Row],[งบประมาณ]],ABS((ค่าใช้จ่ายในการดำเนินการ[[#This Row],[รอบระยะเวลาปัจจุบัน]]/ค่าใช้จ่ายในการดำเนินการ[[#This Row],[งบประมาณ]])-1),IF(AND(ค่าใช้จ่ายในการดำเนินการ[[#This Row],[รอบระยะเวลาปัจจุบัน]]<ค่าใช้จ่ายในการดำเนินการ[[#This Row],[งบประมาณ]],ค่าใช้จ่ายในการดำเนินการ[[#This Row],[งบประมาณ]]<0),-((ค่าใช้จ่ายในการดำเนินการ[[#This Row],[รอบระยะเวลาปัจจุบัน]]/ค่าใช้จ่ายในการดำเนินการ[[#This Row],[งบประมาณ]])-1),(ค่าใช้จ่ายในการดำเนินการ[[#This Row],[รอบระยะเวลาปัจจุบัน]]/ค่าใช้จ่ายในการดำเนินการ[[#This Row],[งบประมาณ]])-1))),\"-\")","v":{"v":0,"d":"0.00%"}}]
[null,"ทั่วไปและการดูแล","โทรศัพท์",{"$nulls":3},{"$f":"IFERROR(IF(Sales_Revenue=0,\"-\",ค่าใช้จ่ายในการดำเนินการ[รอบระยะเวลาปัจจุบัน]/Sales_Revenue),\"-\")","v":"-"},{"$f":"IFERROR(IF(ค่าใช้จ่ายในการดำเนินการ[[#This Row],[รอบระยะเวลาก่อนหน้า]]=ค่าใช้จ่ายในการดำเนินการ[[#This Row],[รอบระยะเวลาปัจจุบัน]],0,IF(ค่าใช้จ่ายในการดำเนินการ[[#This Row],[รอบระยะเวลาปัจจุบัน]]>ค่าใช้จ่ายในการดำเนินการ[[#This Row],[รอบระยะเวลาก่อนหน้า]],ABS((ค่าใช้จ่ายในการดำเนินการ[[#This Row],[รอบระยะเวลาปัจจุบัน]]/ค่าใช้จ่ายในการดำเนินการ[[#This Row],[รอบระยะเวลาก่อนหน้า]])-1),IF(AND(ค่าใช้จ่ายในการดำเนินการ[[#This Row],[รอบระยะเวลาปัจจุบัน]]<ค่าใช้จ่ายในการดำเนินการ[[#This Row],[รอบระยะเวลาก่อนหน้า]],ค่าใช้จ่ายในการดำเนินการ[[#This Row],[รอบระยะเวลาก่อนหน้า]]<0),-((ค่าใช้จ่ายในการดำเนินการ[[#This Row],[รอบระยะเวลาปัจจุบัน]]/ค่าใช้จ่ายในการดำเนินการ[[#This Row],[รอบระยะเวลาก่อนหน้า]])-1),(ค่าใช้จ่ายในการดำเนินการ[[#This Row],[รอบระยะเวลาปัจจุบัน]]/ค่าใช้จ่ายในการดำเนินการ[[#This Row],[รอบระยะเวลาก่อนหน้า]])-1))),\"-\")","v":{"v":0,"d":"0.00%"}},{"$f":"IFERROR(IF(ค่าใช้จ่ายในการดำเนินการ[[#This Row],[งบประมาณ]]=ค่าใช้จ่ายในการดำเนินการ[[#This Row],[รอบระยะเวลาปัจจุบัน]],0,IF(ค่าใช้จ่ายในการดำเนินการ[[#This Row],[รอบระยะเวลาปัจจุบัน]]>ค่าใช้จ่ายในการดำเนินการ[[#This Row],[งบประมาณ]],ABS((ค่าใช้จ่ายในการดำเนินการ[[#This Row],[รอบระยะเวลาปัจจุบัน]]/ค่าใช้จ่ายในการดำเนินการ[[#This Row],[งบประมาณ]])-1),IF(AND(ค่าใช้จ่ายในการดำเนินการ[[#This Row],[รอบระยะเวลาปัจจุบัน]]<ค่าใช้จ่ายในการดำเนินการ[[#This Row],[งบประมาณ]],ค่าใช้จ่ายในการดำเนินการ[[#This Row],[งบประมาณ]]<0),-((ค่าใช้จ่ายในการดำเนินการ[[#This Row],[รอบระยะเวลาปัจจุบัน]]/ค่าใช้จ่ายในการดำเนินการ[[#This Row],[งบประมาณ]])-1),(ค่าใช้จ่ายในการดำเนินการ[[#This Row],[รอบระยะเวลาปัจจุบัน]]/ค่าใช้จ่ายในการดำเนินการ[[#This Row],[งบประมาณ]])-1))),\"-\")","v":{"v":0,"d":"0.00%"}}]
[null,"ทั่วไปและการดูแล","สาธารณูปโภค",{"$nulls":3},{"$f":"IFERROR(IF(Sales_Revenue=0,\"-\",ค่าใช้จ่ายในการดำเนินการ[รอบระยะเวลาปัจจุบัน]/Sales_Revenue),\"-\")","v":"-"},{"$f":"IFERROR(IF(ค่าใช้จ่ายในการดำเนินการ[[#This Row],[รอบระยะเวลาก่อนหน้า]]=ค่าใช้จ่ายในการดำเนินการ[[#This Row],[รอบระยะเวลาปัจจุบัน]],0,IF(ค่าใช้จ่ายในการดำเนินการ[[#This Row],[รอบระยะเวลาปัจจุบัน]]>ค่าใช้จ่ายในการดำเนินการ[[#This Row],[รอบระยะเวลาก่อนหน้า]],ABS((ค่าใช้จ่ายในการดำเนินการ[[#This Row],[รอบระยะเวลาปัจจุบัน]]/ค่าใช้จ่ายในการดำเนินการ[[#This Row],[รอบระยะเวลาก่อนหน้า]])-1),IF(AND(ค่าใช้จ่ายในการดำเนินการ[[#This Row],[รอบระยะเวลาปัจจุบัน]]<ค่าใช้จ่ายในการดำเนินการ[[#This Row],[รอบระยะเวลาก่อนหน้า]],ค่าใช้จ่ายในการดำเนินการ[[#This Row],[รอบระยะเวลาก่อนหน้า]]<0),-((ค่าใช้จ่ายในการดำเนินการ[[#This Row],[รอบระยะเวลาปัจจุบัน]]/ค่าใช้จ่ายในการดำเนินการ[[#This Row],[รอบระยะเวลาก่อนหน้า]])-1),(ค่าใช้จ่ายในการดำเนินการ[[#This Row],[รอบระยะเวลาปัจจุบัน]]/ค่าใช้จ่ายในการดำเนินการ[[#This Row],[รอบระยะเวลาก่อนหน้า]])-1))),\"-\")","v":{"v":0,"d":"0.00%"}},{"$f":"IFERROR(IF(ค่าใช้จ่ายในการดำเนินการ[[#This Row],[งบประมาณ]]=ค่าใช้จ่ายในการดำเนินการ[[#This Row],[รอบระยะเวลาปัจจุบัน]],0,IF(ค่าใช้จ่ายในการดำเนินการ[[#This Row],[รอบระยะเวลาปัจจุบัน]]>ค่าใช้จ่ายในการดำเนินการ[[#This Row],[งบประมาณ]],ABS((ค่าใช้จ่ายในการดำเนินการ[[#This Row],[รอบระยะเวลาปัจจุบัน]]/ค่าใช้จ่ายในการดำเนินการ[[#This Row],[งบประมาณ]])-1),IF(AND(ค่าใช้จ่ายในการดำเนินการ[[#This Row],[รอบระยะเวลาปัจจุบัน]]<ค่าใช้จ่ายในการดำเนินการ[[#This Row],[งบประมาณ]],ค่าใช้จ่ายในการดำเนินการ[[#This Row],[งบประมาณ]]<0),-((ค่าใช้จ่ายในการดำเนินการ[[#This Row],[รอบระยะเวลาปัจจุบัน]]/ค่าใช้จ่ายในการดำเนินการ[[#This Row],[งบประมาณ]])-1),(ค่าใช้จ่ายในการดำเนินการ[[#This Row],[รอบระยะเวลาปัจจุบัน]]/ค่าใช้จ่ายในการดำเนินการ[[#This Row],[งบประมาณ]])-1))),\"-\")","v":{"v":0,"d":"0.00%"}}]
[null,"ทั่วไปและการดูแล","ค่าเสื่อมราคา",{"$nulls":3},{"$f":"IFERROR(IF(Sales_Revenue=0,\"-\",ค่าใช้จ่ายในการดำเนินการ[รอบระยะเวลาปัจจุบัน]/Sales_Revenue),\"-\")","v":"-"},{"$f":"IFERROR(IF(ค่าใช้จ่ายในการดำเนินการ[[#This Row],[รอบระยะเวลาก่อนหน้า]]=ค่าใช้จ่ายในการดำเนินการ[[#This Row],[รอบระยะเวลาปัจจุบัน]],0,IF(ค่าใช้จ่ายในการดำเนินการ[[#This Row],[รอบระยะเวลาปัจจุบัน]]>ค่าใช้จ่ายในการดำเนินการ[[#This Row],[รอบระยะเวลาก่อนหน้า]],ABS((ค่าใช้จ่ายในการดำเนินการ[[#This Row],[รอบระยะเวลาปัจจุบัน]]/ค่าใช้จ่ายในการดำเนินการ[[#This Row],[รอบระยะเวลาก่อนหน้า]])-1),IF(AND(ค่าใช้จ่ายในการดำเนินการ[[#This Row],[รอบระยะเวลาปัจจุบัน]]<ค่าใช้จ่ายในการดำเนินการ[[#This Row],[รอบระยะเวลาก่อนหน้า]],ค่าใช้จ่ายในการดำเนินการ[[#This Row],[รอบระยะเวลาก่อนหน้า]]<0),-((ค่าใช้จ่ายในการดำเนินการ[[#This Row],[รอบระยะเวลาปัจจุบัน]]/ค่าใช้จ่ายในการดำเนินการ[[#This Row],[รอบระยะเวลาก่อนหน้า]])-1),(ค่าใช้จ่ายในการดำเนินการ[[#This Row],[รอบระยะเวลาปัจจุบัน]]/ค่าใช้จ่ายในการดำเนินการ[[#This Row],[รอบระยะเวลาก่อนหน้า]])-1))),\"-\")","v":{"v":0,"d":"0.00%"}},{"$f":"IFERROR(IF(ค่าใช้จ่ายในการดำเนินการ[[#This Row],[งบประมาณ]]=ค่าใช้จ่ายในการดำเนินการ[[#This Row],[รอบระยะเวลาปัจจุบัน]],0,IF(ค่าใช้จ่ายในการดำเนินการ[[#This Row],[รอบระยะเวลาปัจจุบัน]]>ค่าใช้จ่ายในการดำเนินการ[[#This Row],[งบประมาณ]],ABS((ค่าใช้จ่ายในการดำเนินการ[[#This Row],[รอบระยะเวลาปัจจุบัน]]/ค่าใช้จ่ายในการดำเนินการ[[#This Row],[งบประมาณ]])-1),IF(AND(ค่าใช้จ่ายในการดำเนินการ[[#This Row],[รอบระยะเวลาปัจจุบัน]]<ค่าใช้จ่ายในการดำเนินการ[[#This Row],[งบประมาณ]],ค่าใช้จ่ายในการดำเนินการ[[#This Row],[งบประมาณ]]<0),-((ค่าใช้จ่ายในการดำเนินการ[[#This Row],[รอบระยะเวลาปัจจุบัน]]/ค่าใช้จ่ายในการดำเนินการ[[#This Row],[งบประมาณ]])-1),(ค่าใช้จ่ายในการดำเนินการ[[#This Row],[รอบระยะเวลาปัจจุบัน]]/ค่าใช้จ่ายในการดำเนินการ[[#This Row],[งบประมาณ]])-1))),\"-\")","v":{"v":0,"d":"0.00%"}}]
[null,"ทั่วไปและการดูแล","ค่าประกัน",{"$nulls":3},{"$f":"IFERROR(IF(Sales_Revenue=0,\"-\",ค่าใช้จ่ายในการดำเนินการ[รอบระยะเวลาปัจจุบัน]/Sales_Revenue),\"-\")","v":"-"},{"$f":"IFERROR(IF(ค่าใช้จ่ายในการดำเนินการ[[#This Row],[รอบระยะเวลาก่อนหน้า]]=ค่าใช้จ่ายในการดำเนินการ[[#This Row],[รอบระยะเวลาปัจจุบัน]],0,IF(ค่าใช้จ่ายในการดำเนินการ[[#This Row],[รอบระยะเวลาปัจจุบัน]]>ค่าใช้จ่ายในการดำเนินการ[[#This Row],[รอบระยะเวลาก่อนหน้า]],ABS((ค่าใช้จ่ายในการดำเนินการ[[#This Row],[รอบระยะเวลาปัจจุบัน]]/ค่าใช้จ่ายในการดำเนินการ[[#This Row],[รอบระยะเวลาก่อนหน้า]])-1),IF(AND(ค่าใช้จ่ายในการดำเนินการ[[#This Row],[รอบระยะเวลาปัจจุบัน]]<ค่าใช้จ่ายในการดำเนินการ[[#This Row],[รอบระยะเวลาก่อนหน้า]],ค่าใช้จ่ายในการดำเนินการ[[#This Row],[รอบระยะเวลาก่อนหน้า]]<0),-((ค่าใช้จ่ายในการดำเนินการ[[#This Row],[รอบระยะเวลาปัจจุบัน]]/ค่าใช้จ่ายในการดำเนินการ[[#This Row],[รอบระยะเวลาก่อนหน้า]])-1),(ค่าใช้จ่ายในการดำเนินการ[[#This Row],[รอบระยะเวลาปัจจุบัน]]/ค่าใช้จ่ายในการดำเนินการ[[#This Row],[รอบระยะเวลาก่อนหน้า]])-1))),\"-\")","v":{"v":0,"d":"0.00%"}},{"$f":"IFERROR(IF(ค่าใช้จ่ายในการดำเนินการ[[#This Row],[งบประมาณ]]=ค่าใช้จ่ายในการดำเนินการ[[#This Row],[รอบระยะเวลาปัจจุบัน]],0,IF(ค่าใช้จ่ายในการดำเนินการ[[#This Row],[รอบระยะเวลาปัจจุบัน]]>ค่าใช้จ่ายในการดำเนินการ[[#This Row],[งบประมาณ]],ABS((ค่าใช้จ่ายในการดำเนินการ[[#This Row],[รอบระยะเวลาปัจจุบัน]]/ค่าใช้จ่ายในการดำเนินการ[[#This Row],[งบประมาณ]])-1),IF(AND(ค่าใช้จ่ายในการดำเนินการ[[#This Row],[รอบระยะเวลาปัจจุบัน]]<ค่าใช้จ่ายในการดำเนินการ[[#This Row],[งบประมาณ]],ค่าใช้จ่ายในการดำเนินการ[[#This Row],[งบประมาณ]]<0),-((ค่าใช้จ่ายในการดำเนินการ[[#This Row],[รอบระยะเวลาปัจจุบัน]]/ค่าใช้จ่ายในการดำเนินการ[[#This Row],[งบประมาณ]])-1),(ค่าใช้จ่ายในการดำเนินการ[[#This Row],[รอบระยะเวลาปัจจุบัน]]/ค่าใช้จ่ายในการดำเนินการ[[#This Row],[งบประมาณ]])-1))),\"-\")","v":{"v":0,"d":"0.00%"}}]
[null,"ทั่วไปและการดูแล","ซ่อมแซมและซ่อมบำรุง",{"$nulls":3},{"$f":"IFERROR(IF(Sales_Revenue=0,\"-\",ค่าใช้จ่ายในการดำเนินการ[รอบระยะเวลาปัจจุบัน]/Sales_Revenue),\"-\")","v":"-"},{"$f":"IFERROR(IF(ค่าใช้จ่ายในการดำเนินการ[[#This Row],[รอบระยะเวลาก่อนหน้า]]=ค่าใช้จ่ายในการดำเนินการ[[#This Row],[รอบระยะเวลาปัจจุบัน]],0,IF(ค่าใช้จ่ายในการดำเนินการ[[#This Row],[รอบระยะเวลาปัจจุบัน]]>ค่าใช้จ่ายในการดำเนินการ[[#This Row],[รอบระยะเวลาก่อนหน้า]],ABS((ค่าใช้จ่ายในการดำเนินการ[[#This Row],[รอบระยะเวลาปัจจุบัน]]/ค่าใช้จ่ายในการดำเนินการ[[#This Row],[รอบระยะเวลาก่อนหน้า]])-1),IF(AND(ค่าใช้จ่ายในการดำเนินการ[[#This Row],[รอบระยะเวลาปัจจุบัน]]<ค่าใช้จ่ายในการดำเนินการ[[#This Row],[รอบระยะเวลาก่อนหน้า]],ค่าใช้จ่ายในการดำเนินการ[[#This Row],[รอบระยะเวลาก่อนหน้า]]<0),-((ค่าใช้จ่ายในการดำเนินการ[[#This Row],[รอบระยะเวลาปัจจุบัน]]/ค่าใช้จ่ายในการดำเนินการ[[#This Row],[รอบระยะเวลาก่อนหน้า]])-1),(ค่าใช้จ่ายในการดำเนินการ[[#This Row],[รอบระยะเวลาปัจจุบัน]]/ค่าใช้จ่ายในการดำเนินการ[[#This Row],[รอบระยะเวลาก่อนหน้า]])-1))),\"-\")","v":{"v":0,"d":"0.00%"}},{"$f":"IFERROR(IF(ค่าใช้จ่ายในการดำเนินการ[[#This Row],[งบประมาณ]]=ค่าใช้จ่ายในการดำเนินการ[[#This Row],[รอบระยะเวลาปัจจุบัน]],0,IF(ค่าใช้จ่ายในการดำเนินการ[[#This Row],[รอบระยะเวลาปัจจุบัน]]>ค่าใช้จ่ายในการดำเนินการ[[#This Row],[งบประมาณ]],ABS((ค่าใช้จ่ายในการดำเนินการ[[#This Row],[รอบระยะเวลาปัจจุบัน]]/ค่าใช้จ่ายในการดำเนินการ[[#This Row],[งบประมาณ]])-1),IF(AND(ค่าใช้จ่ายในการดำเนินการ[[#This Row],[รอบระยะเวลาปัจจุบัน]]<ค่าใช้จ่ายในการดำเนินการ[[#This Row],[งบประมาณ]],ค่าใช้จ่ายในการดำเนินการ[[#This Row],[งบประมาณ]]<0),-((ค่าใช้จ่ายในการดำเนินการ[[#This Row],[รอบระยะเวลาปัจจุบัน]]/ค่าใช้จ่ายในการดำเนินการ[[#This Row],[งบประมาณ]])-1),(ค่าใช้จ่ายในการดำเนินการ[[#This Row],[รอบระยะเวลาปัจจุบัน]]/ค่าใช้จ่ายในการดำเนินการ[[#This Row],[งบประมาณ]])-1))),\"-\")","v":{"v":0,"d":"0.00%"}}]
[null,"ทั่วไปและการดูแล","ค่าใช้จ่ายอื่นๆ (โปรดระบุ)",{"$nulls":3},{"$f":"IFERROR(IF(Sales_Revenue=0,\"-\",ค่าใช้จ่ายในการดำเนินการ[รอบระยะเวลาปัจจุบัน]/Sales_Revenue),\"-\")","v":"-"},{"$f":"IFERROR(IF(ค่าใช้จ่ายในการดำเนินการ[[#This Row],[รอบระยะเวลาก่อนหน้า]]=ค่าใช้จ่ายในการดำเนินการ[[#This Row],[รอบระยะเวลาปัจจุบัน]],0,IF(ค่าใช้จ่ายในการดำเนินการ[[#This Row],[รอบระยะเวลาปัจจุบัน]]>ค่าใช้จ่ายในการดำเนินการ[[#This Row],[รอบระยะเวลาก่อนหน้า]],ABS((ค่าใช้จ่ายในการดำเนินการ[[#This Row],[รอบระยะเวลาปัจจุบัน]]/ค่าใช้จ่ายในการดำเนินการ[[#This Row],[รอบระยะเวลาก่อนหน้า]])-1),IF(AND(ค่าใช้จ่ายในการดำเนินการ[[#This Row],[รอบระยะเวลาปัจจุบัน]]<ค่าใช้จ่ายในการดำเนินการ[[#This Row],[รอบระยะเวลาก่อนหน้า]],ค่าใช้จ่ายในการดำเนินการ[[#This Row],[รอบระยะเวลาก่อนหน้า]]<0),-((ค่าใช้จ่ายในการดำเนินการ[[#This Row],[รอบระยะเวลาปัจจุบัน]]/ค่าใช้จ่ายในการดำเนินการ[[#This Row],[รอบระยะเวลาก่อนหน้า]])-1),(ค่าใช้จ่ายในการดำเนินการ[[#This Row],[รอบระยะเวลาปัจจุบัน]]/ค่าใช้จ่ายในการดำเนินการ[[#This Row],[รอบระยะเวลาก่อนหน้า]])-1))),\"-\")","v":{"v":0,"d":"0.00%"}},{"$f":"IFERROR(IF(ค่าใช้จ่ายในการดำเนินการ[[#This Row],[งบประมาณ]]=ค่าใช้จ่ายในการดำเนินการ[[#This Row],[รอบระยะเวลาปัจจุบัน]],0,IF(ค่าใช้จ่ายในการดำเนินการ[[#This Row],[รอบระยะเวลาปัจจุบัน]]>ค่าใช้จ่ายในการดำเนินการ[[#This Row],[งบประมาณ]],ABS((ค่าใช้จ่ายในการดำเนินการ[[#This Row],[รอบระยะเวลาปัจจุบัน]]/ค่าใช้จ่ายในการดำเนินการ[[#This Row],[งบประมาณ]])-1),IF(AND(ค่าใช้จ่ายในการดำเนินการ[[#This Row],[รอบระยะเวลาปัจจุบัน]]<ค่าใช้จ่ายในการดำเนินการ[[#This Row],[งบประมาณ]],ค่าใช้จ่ายในการดำเนินการ[[#This Row],[งบประมาณ]]<0),-((ค่าใช้จ่ายในการดำเนินการ[[#This Row],[รอบระยะเวลาปัจจุบัน]]/ค่าใช้จ่ายในการดำเนินการ[[#This Row],[งบประมาณ]])-1),(ค่าใช้จ่ายในการดำเนินการ[[#This Row],[รอบระยะเวลาปัจจุบัน]]/ค่าใช้จ่ายในการดำเนินการ[[#This Row],[งบประมาณ]])-1))),\"-\")","v":{"v":0,"d":"0.00%"}}]
[null,"ทั่วไปและการดูแล","ค่าใช้จ่ายอื่นๆ (โปรดระบุ)",{"$nulls":3},{"$f":"IFERROR(IF(Sales_Revenue=0,\"-\",ค่าใช้จ่ายในการดำเนินการ[รอบระยะเวลาปัจจุบัน]/Sales_Revenue),\"-\")","v":"-"},{"$f":"IFERROR(IF(ค่าใช้จ่ายในการดำเนินการ[[#This Row],[รอบระยะเวลาก่อนหน้า]]=ค่าใช้จ่ายในการดำเนินการ[[#This Row],[รอบระยะเวลาปัจจุบัน]],0,IF(ค่าใช้จ่ายในการดำเนินการ[[#This Row],[รอบระยะเวลาปัจจุบัน]]>ค่าใช้จ่ายในการดำเนินการ[[#This Row],[รอบระยะเวลาก่อนหน้า]],ABS((ค่าใช้จ่ายในการดำเนินการ[[#This Row],[รอบระยะเวลาปัจจุบัน]]/ค่าใช้จ่ายในการดำเนินการ[[#This Row],[รอบระยะเวลาก่อนหน้า]])-1),IF(AND(ค่าใช้จ่ายในการดำเนินการ[[#This Row],[รอบระยะเวลาปัจจุบัน]]<ค่าใช้จ่ายในการดำเนินการ[[#This Row],[รอบระยะเวลาก่อนหน้า]],ค่าใช้จ่ายในการดำเนินการ[[#This Row],[รอบระยะเวลาก่อนหน้า]]<0),-((ค่าใช้จ่ายในการดำเนินการ[[#This Row],[รอบระยะเวลาปัจจุบัน]]/ค่าใช้จ่ายในการดำเนินการ[[#This Row],[รอบระยะเวลาก่อนหน้า]])-1),(ค่าใช้จ่ายในการดำเนินการ[[#This Row],[รอบระยะเวลาปัจจุบัน]]/ค่าใช้จ่ายในการดำเนินการ[[#This Row],[รอบระยะเวลาก่อนหน้า]])-1))),\"-\")","v":{"v":0,"d":"0.00%"}},{"$f":"IFERROR(IF(ค่าใช้จ่ายในการดำเนินการ[[#This Row],[งบประมาณ]]=ค่าใช้จ่ายในการดำเนินการ[[#This Row],[รอบระยะเวลาปัจจุบัน]],0,IF(ค่าใช้จ่ายในการดำเนินการ[[#This Row],[รอบระยะเวลาปัจจุบัน]]>ค่าใช้จ่ายในการดำเนินการ[[#This Row],[งบประมาณ]],ABS((ค่าใช้จ่ายในการดำเนินการ[[#This Row],[รอบระยะเวลาปัจจุบัน]]/ค่าใช้จ่ายในการดำเนินการ[[#This Row],[งบประมาณ]])-1),IF(AND(ค่าใช้จ่ายในการดำเนินการ[[#This Row],[รอบระยะเวลาปัจจุบัน]]<ค่าใช้จ่ายในการดำเนินการ[[#This Row],[งบประมาณ]],ค่าใช้จ่ายในการดำเนินการ[[#This Row],[งบประมาณ]]<0),-((ค่าใช้จ่ายในการดำเนินการ[[#This Row],[รอบระยะเวลาปัจจุบัน]]/ค่าใช้จ่ายในการดำเนินการ[[#This Row],[งบประมาณ]])-1),(ค่าใช้จ่ายในการดำเนินการ[[#This Row],[รอบระยะเวลาปัจจุบัน]]/ค่าใช้จ่ายในการดำเนินการ[[#This Row],[งบประมาณ]])-1))),\"-\")","v":{"v":0,"d":"0.00%"}}]
[null,"ยอดรวมค่าใช้จ่ายในการดำเนินการ",null,{"$f":"SUBTOTAL(109,ค่าใช้จ่ายในการดำเนินการ[รอบระยะเวลาก่อนหน้า])","v":0},{"$f":"SUBTOTAL(109,ค่าใช้จ่ายในการดำเนินการ[งบประมาณ])","v":0},{"$f":"SUBTOTAL(109,ค่าใช้จ่ายในการดำเนินการ[รอบระยะเวลาปัจจุบัน])","v":0},{"$f":"SUBTOTAL(109,ค่าใช้จ่ายในการดำเนินการ[รอบระยะเวลาปัจจุบันคิดเป็น % ของยอดขาย])","v":{"v":0,"d":"0.00%"}},{"$f":"SUBTOTAL(109,ค่าใช้จ่ายในการดำเนินการ[% การเปลี่ยนแปลงจากรอบระยะเวลาก่อนหน้า])","v":{"v":0,"d":"0.00%"}},{"$f":"SUBTOTAL(109,ค่าใช้จ่ายในการดำเนินการ[% การเปลี่ยนแปลงจากงบประมาณ])","v":{"v":0,"d":"0.00%"}}]

{"sheet":"ภาษี","index":4,"n_rows":10,"n_cols":9,"rows_kept":10,"merged":[[0,7,2,8]]}
[null,{"$f":"Workbook_Title","v":"งบกำไรขาดทุน"}]
[null,{"$f":"Company_Name","v":"ชื่อบริษัท"},"ระบุเป็น 000s"]
[null,"ภาษี",{"$f":"IFERROR(ภาษี[[#Totals],[รอบระยะเวลาปัจจุบัน]],\"-\")","v":0}]
[null,"ชนิด","คำอธิบาย","รอบระยะเวลาก่อนหน้า","งบประมาณ","รอบระยะเวลาปัจจุบัน","รอบระยะเวลาปัจจุบันคิดเป็น % ของยอดขาย","% การเปลี่ยนแปลงจากรอบระยะเวลาก่อนหน้า","% การเปลี่ยนแปลงจากงบประมาณ"]
[null,"ภาษี","ภาษีเงินได้",{"$nulls":3},{"$f":"IFERROR(IF(Sales_Revenue=0,\"-\",ภาษี[รอบระยะเวลาปัจจุบัน]/Sales_Revenue),\"-\")","v":"-"},{"$f":"IFERROR(IF(ภาษี[[#This Row],[รอบระยะเวลาก่อนหน้า]]=ภาษี[[#This Row],[รอบระยะเวลาปัจจุบัน]],0,IF(ภาษี[[#This Row],[รอบระยะเวลาปัจจุบัน]]>ภาษี[[#This Row],[รอบระยะเวลาก่อนหน้า]],ABS((ภาษี[[#This Row],[รอบระยะเวลาปัจจุบัน]]/ภาษี[[#This Row],[รอบระยะเวลาก่อนหน้า]])-1),IF(AND(ภาษี[[#This Row],[รอบระยะเวลาปัจจุบัน]]<ภาษี[[#This Row],[รอบระยะเวลาก่อนหน้า]],ภาษี[[#This Row],[รอบระยะเวลาก่อนหน้า]]<0),-((ภาษี[[#This Row],[รอบระยะเวลาปัจจุบัน]]/ภาษี[[#This Row],[รอบระยะเวลาก่อนหน้า]])-1),(ภาษี[[#This Row],[รอบระยะเวลาปัจจุบัน]]/ภาษี[[#This Row],[รอบระยะเวลาก่อนหน้า]])-1))),\"-\")","v":{"v":0,"d":"0.00%"}},{"$f":"IFERROR(IF(ภาษี[[#This Row],[งบประมาณ]]=ภาษี[[#This Row],[รอบระยะเวลาปัจจุบัน]],0,IF(ภาษี[[#This Row],[รอบระยะเวลาปัจจุบัน]]>ภาษี[[#This Row],[งบประมาณ]],ABS((ภาษี[[#This Row],[รอบระยะเวลาปัจจุบัน]]/ภาษี[[#This Row],[งบประมาณ]])-1),IF(AND(ภาษี[[#This Row],[รอบระยะเวลาปัจจุบัน]]<ภาษี[[#This Row],[งบประมาณ]],ภาษี[[#This Row],[งบประมาณ]]<0),-((ภาษี[[#This Row],[รอบระยะเวลาปัจจุบัน]]/ภาษี[[#This Row],[งบประมาณ]])-1),(ภาษี[[#This Row],[รอบระยะเวลาปัจจุบัน]]/ภาษี[[#This Row],[งบประมาณ]])-1))),\"-\")","v":{"v":0,"d":"0.00%"}}]
[null,"ภาษี","ภาษีการจ้างงาน",{"$nulls":3},{"$f":"IFERROR(IF(Sales_Revenue=0,\"-\",ภาษี[รอบระยะเวลาปัจจุบัน]/Sales_Revenue),\"-\")","v":"-"},{"$f":"IFERROR(IF(ภาษี[[#This Row],[รอบระยะเวลาก่อนหน้า]]=ภาษี[[#This Row],[รอบระยะเวลาปัจจุบัน]],0,IF(ภาษี[[#This Row],[รอบระยะเวลาปัจจุบัน]]>ภาษี[[#This Row],[รอบระยะเวลาก่อนหน้า]],ABS((ภาษี[[#This Row],[รอบระยะเวลาปัจจุบัน]]/ภาษี[[#This Row],[รอบระยะเวลาก่อนหน้า]])-1),IF(AND(ภาษี[[#This Row],[รอบระยะเวลาปัจจุบัน]]<ภาษี[[#This Row],[รอบระยะเวลาก่อนหน้า]],ภาษี[[#This Row],[รอบระยะเวลาก่อนหน้า]]<0),-((ภาษี[[#This Row],[รอบระยะเวลาปัจจุบัน]]/ภาษี[[#This Row],[รอบระยะเวลาก่อนหน้า]])-1),(ภาษี[[#This Row],[รอบระยะเวลาปัจจุบัน]]/ภาษี[[#This Row],[รอบระยะเวลาก่อนหน้า]])-1))),\"-\")","v":{"v":0,"d":"0.00%"}},{"$f":"IFERROR(IF(ภาษี[[#This Row],[งบประมาณ]]=ภาษี[[#This Row],[รอบระยะเวลาปัจจุบัน]],0,IF(ภาษี[[#This Row],[รอบระยะเวลาปัจจุบัน]]>ภาษี[[#This Row],[งบประมาณ]],ABS((ภาษี[[#This Row],[รอบระยะเวลาปัจจุบัน]]/ภาษี[[#This Row],[งบประมาณ]])-1),IF(AND(ภาษี[[#This Row],[รอบระยะเวลาปัจจุบัน]]<ภาษี[[#This Row],[งบประมาณ]],ภาษี[[#This Row],[งบประมาณ]]<0),-((ภาษี[[#This Row],[รอบระยะเวลาปัจจุบัน]]/ภาษี[[#This Row],[งบประมาณ]])-1),(ภาษี[[#This Row],[รอบระยะเวลาปัจจุบัน]]/ภาษี[[#This Row],[งบประมาณ]])-1))),\"-\")","v":{"v":0,"d":"0.00%"}}]
[null,"ภาษี","ภาษีอสังหาริมทรัพย์",{"$nulls":3},{"$f":"IFERROR(IF(Sales_Revenue=0,\"-\",ภาษี[รอบระยะเวลาปัจจุบัน]/Sales_Revenue),\"-\")","v":"-"},{"$f":"IFERROR(IF(ภาษี[[#This Row],[รอบระยะเวลาก่อนหน้า]]=ภาษี[[#This Row],[รอบระยะเวลาปัจจุบัน]],0,IF(ภาษี[[#This Row],[รอบระยะเวลาปัจจุบัน]]>ภาษี[[#This Row],[รอบระยะเวลาก่อนหน้า]],ABS((ภาษี[[#This Row],[รอบระยะเวลาปัจจุบัน]]/ภาษี[[#This Row],[รอบระยะเวลาก่อนหน้า]])-1),IF(AND(ภาษี[[#This Row],[รอบระยะเวลาปัจจุบัน]]<ภาษี[[#This Row],[รอบระยะเวลาก่อนหน้า]],ภาษี[[#This Row],[รอบระยะเวลาก่อนหน้า]]<0),-((ภาษี[[#This Row],[รอบระยะเวลาปัจจุบัน]]/ภาษี[[#This Row],[รอบระยะเวลาก่อนหน้า]])-1),(ภาษี[[#This Row],[รอบระยะเวลาปัจจุบัน]]/ภาษี[[#This Row],[รอบระยะเวลาก่อนหน้า]])-1))),\"-\")","v":{"v":0,"d":"0.00%"}},{"$f":"IFERROR(IF(ภาษี[[#This Row],[งบประมาณ]]=ภาษี[[#This Row],[รอบระยะเวลาปัจจุบัน]],0,IF(ภาษี[[#This Row],[รอบระยะเวลาปัจจุบัน]]>ภาษี[[#This Row],[งบประมาณ]],ABS((ภาษี[[#This Row],[รอบระยะเวลาปัจจุบัน]]/ภาษี[[#This Row],[งบประมาณ]])-1),IF(AND(ภาษี[[#This Row],[รอบระยะเวลาปัจจุบัน]]<ภาษี[[#This Row],[งบประมาณ]],ภาษี[[#This Row],[งบประมาณ]]<0),-((ภาษี[[#This Row],[รอบระยะเวลาปัจจุบัน]]/ภาษี[[#This Row],[งบประมาณ]])-1),(ภาษี[[#This Row],[รอบระยะเวลาปัจจุบัน]]/ภาษี[[#This Row],[งบประมาณ]])-1))),\"-\")","v":{"v":0,"d":"0.00%"}}]
[null,"ภาษี","ภาษีอื่นๆ (ระบุ)",{"$nulls":3},{"$f":"IFERROR(IF(Sales_Revenue=0,\"-\",ภาษี[รอบระยะเวลาปัจจุบัน]/Sales_Revenue),\"-\")","v":"-"},{"$f":"IFERROR(IF(ภาษี[[#This Row],[รอบระยะเวลาก่อนหน้า]]=ภาษี[[#This Row],[รอบระยะเวลาปัจจุบัน]],0,IF(ภาษี[[#This Row],[รอบระยะเวลาปัจจุบัน]]>ภาษี[[#This Row],[รอบระยะเวลาก่อนหน้า]],ABS((ภาษี[[#This Row],[รอบระยะเวลาปัจจุบัน]]/ภาษี[[#This Row],[รอบระยะเวลาก่อนหน้า]])-1),IF(AND(ภาษี[[#This Row],[รอบระยะเวลาปัจจุบัน]]<ภาษี[[#This Row],[รอบระยะเวลาก่อนหน้า]],ภาษี[[#This Row],[รอบระยะเวลาก่อนหน้า]]<0),-((ภาษี[[#This Row],[รอบระยะเวลาปัจจุบัน]]/ภาษี[[#This Row],[รอบระยะเวลาก่อนหน้า]])-1),(ภาษี[[#This Row],[รอบระยะเวลาปัจจุบัน]]/ภาษี[[#This Row],[รอบระยะเวลาก่อนหน้า]])-1))),\"-\")","v":{"v":0,"d":"0.00%"}},{"$f":"IFERROR(IF(ภาษี[[#This Row],[งบประมาณ]]=ภาษี[[#This Row],[รอบระยะเวลาปัจจุบัน]],0,IF(ภาษี[[#This Row],[รอบระยะเวลาปัจจุบัน]]>ภาษี[[#This Row],[งบประมาณ]],ABS((ภาษี[[#This Row],[รอบระยะเวลาปัจจุบัน]]/ภาษี[[#This Row],[งบประมาณ]])-1),IF(AND(ภาษี[[#This Row],[รอบระยะเวลาปัจจุบัน]]<ภาษี[[#This Row],[งบประมาณ]],ภาษี[[#This Row],[งบประมาณ]]<0),-((ภาษี[[#This Row],[รอบระยะเวลาปัจจุบัน]]/ภาษี[[#This Row],[งบประมาณ]])-1),(ภาษี[[#This Row],[รอบระยะเวลาปัจจุบัน]]/ภาษี[[#This Row],[งบประมาณ]])-1))),\"-\")","v":{"v":0,"d":"0.00%"}}]
[null,"ภาษี","ภาษีอื่นๆ (ระบุ)",{"$nulls":3},{"$f":"IFERROR(IF(Sales_Revenue=0,\"-\",ภาษี[รอบระยะเวลาปัจจุบัน]/Sales_Revenue),\"-\")","v":"-"},{"$f":"IFERROR(IF(ภาษี[[#This Row],[รอบระยะเวลาก่อนหน้า]]=ภาษี[[#This Row],[รอบระยะเวลาปัจจุบัน]],0,IF(ภาษี[[#This Row],[รอบระยะเวลาปัจจุบัน]]>ภาษี[[#This Row],[รอบระยะเวลาก่อนหน้า]],ABS((ภาษี[[#This Row],[รอบระยะเวลาปัจจุบัน]]/ภาษี[[#This Row],[รอบระยะเวลาก่อนหน้า]])-1),IF(AND(ภาษี[[#This Row],[รอบระยะเวลาปัจจุบัน]]<ภาษี[[#This Row],[รอบระยะเวลาก่อนหน้า]],ภาษี[[#This Row],[รอบระยะเวลาก่อนหน้า]]<0),-((ภาษี[[#This Row],[รอบระยะเวลาปัจจุบัน]]/ภาษี[[#This Row],[รอบระยะเวลาก่อนหน้า]])-1),(ภาษี[[#This Row],[รอบระยะเวลาปัจจุบัน]]/ภาษี[[#This Row],[รอบระยะเวลาก่อนหน้า]])-1))),\"-\")","v":{"v":0,"d":"0.00%"}},{"$f":"IFERROR(IF(ภาษี[[#This Row],[งบประมาณ]]=ภาษี[[#This Row],[รอบระยะเวลาปัจจุบัน]],0,IF(ภาษี[[#This Row],[รอบระยะเวลาปัจจุบัน]]>ภาษี[[#This Row],[งบประมาณ]],ABS((ภาษี[[#This Row],[รอบระยะเวลาปัจจุบัน]]/ภาษี[[#This Row],[งบประมาณ]])-1),IF(AND(ภาษี[[#This Row],[รอบระยะเวลาปัจจุบัน]]<ภาษี[[#This Row],[งบประมาณ]],ภาษี[[#This Row],[งบประมาณ]]<0),-((ภาษี[[#This Row],[รอบระยะเวลาปัจจุบัน]]/ภาษี[[#This Row],[งบประมาณ]])-1),(ภาษี[[#This Row],[รอบระยะเวลาปัจจุบัน]]/ภาษี[[#This Row],[งบประมาณ]])-1))),\"-\")","v":{"v":0,"d":"0.00%"}}]
[null,"ยอดรวมภาษี",null,{"$f":"SUBTOTAL(109,ภาษี[รอบระยะเวลาก่อนหน้า])","v":0},{"$f":"SUBTOTAL(109,ภาษี[งบประมาณ])","v":0},{"$f":"SUBTOTAL(109,ภาษี[รอบระยะเวลาปัจจุบัน])","v":0},{"$f":"IFERROR(SUBTOTAL(109,ภาษี[รอบระยะเวลาปัจจุบันคิดเป็น % ของยอดขาย]),\"-\")","v":{"v":0,"d":"0.00%"}},{"$f":"SUBTOTAL(109,ภาษี[% การเปลี่ยนแปลงจากรอบระยะเวลาก่อนหน้า])","v":{"v":0,"d":"0.00%"}},{"$f":"SUBTOTAL(109,ภาษี[% การเปลี่ยนแปลงจากงบประมาณ])","v":{"v":0,"d":"0.00%"}}]

{"sheet":"ประเภท","index":5,"n_rows":8,"n_cols":2,"rows_kept":8}
[null,"ประเภท"]
[null,"รายได้จากการขาย"]
[null,"ต้นทุนการขาย"]
[null,"รายรับ"]
[null,"การขายและการตลาด"]
[null,"การวิจัยและการพัฒนา"]
[null,"ทั่วไปและการดูแล"]
[null,"ภาษี"]